Department,Entity,Posted Date,Internal Voucher Number, Invoice Line Amount GBP ,Supplier Name,Account Code
FCO,FCO,21/06/2021,11232997,"80,857,745.89",HOME OFFICE,UKBA Visa Income Creditor Control
FCO,FCO,22/06/2021,11234205,"24,231,678.27",European External Action Service,Programme Spend (Oracle Projects Control Account)
FCO,FCO,10/06/2021,11221303,"9,495,367.29",ORGANISATION FOR ECONOMIC CO OPERATION AND DEVELOPMENT OECD,Programme Spend (Oracle Projects Control Account)
FCO,FCO,15/06/2021,11225826,"8,500,000.00",THE BRITISH COUNCIL,Programme Spend (Oracle Projects Control Account)
FCO,FCO,17/06/2021,11228994,"8,063,939.08",HMRC HM REVENUE AND CUSTOMS,Multiple Accounts
FCO,FCO,18/06/2021,11230890,"7,766,871.00",BBC BRITISH BROADCASTING CORPORATION,Programme Spend (Oracle Projects Control Account)
FCO,FCO,09/06/2021,11219181,"7,720,473.63",CABINET OFFICE,Multiple Accounts
FCO,FCO,04/06/2021,11212265,"6,120,041.79",ORGANIZATION FOR SECURITY AND CO-OPERATION IN EUROPE,Programme Spend (Oracle Projects Control Account)
FCO,FCO,28/06/2021,11241854,"4,650,400.00",CABINET OFFICE,End User Software and Hardware
FCO,FCO,22/06/2021,11234250,"4,434,944.73",ATALIAN SERVEST,Inward visits to the UK and UK Conferences
FCO,FCO,01/06/2021,11207792,"3,999,690.55",FCDO POSTS,Funding Overseas Posts
FCO,FCO,23/06/2021,11236381,"3,748,664.54",VODAFONE LTD CABLE AND WIRELESS UK,IT Networking
FCO,FCO,07/06/2021,11214254,"2,636,679.13",GRUNLEY CONSTRUCTION CO INC,Additions-Assets Under Construction (Oracle PA Control Account)
FCO,FCO,24/06/2021,11237912,"2,541,501.71",GRUNLEY CONSTRUCTION CO INC,Additions-Assets Under Construction (Oracle PA Control Account)
FCO,FCO,01/06/2021,11207652,"2,395,884.72",FCDO POSTS,Funding Overseas Posts
FCO,FCO,01/06/2021,11207637,"2,324,008.17",FCDO POSTS,Funding Overseas Posts
FCO,FCO,11/06/2021,11222566,"2,114,015.93",FCDO POSTS,Funding Overseas Posts
FCO,FCO,04/06/2021,11211656,"2,000,000.00",THE ASSOCIATION OF COMMONWEALTH UNIVERSITIES,Programme Spend (Oracle Projects Control Account)
FCO,FCO,07/06/2021,11214669,"1,843,578.79",GW CONSULTING UK LTD,UK Guarding Contracts Overseas
FCO,FCO,01/06/2021,11223041,"1,688,476.39",THE ROYAL BANK OF SCOTLAND,GPC Clearing Account
FCO,FCO,01/06/2021,11207653,"1,550,278.35",FCDO POSTS,Funding Overseas Posts
FCO,FCO,30/06/2021,11245048,"1,461,969.00",TBR GLOBAL CHAUFFEURING,Vehicle Hire
FCO,FCO,01/06/2021,11227479,"1,364,910.54",THE ROYAL BANK OF SCOTLAND,Travel Package Advance Overseas Posting (Credit Card Payments Only)
FCO,FCO,11/06/2021,11222561,"1,348,334.48",JLL PROPERTY CONSULTANTS PTE LTD POE,FMCU POE Trust Account Debtor
FCO,FCO,01/06/2021,11207645,"1,273,926.43",FCDO POSTS,Funding Overseas Posts
FCO,FCO,30/06/2021,11244831,"1,196,237.94",FCDO SERVICES,Residential Property Services
FCO,FCO,09/06/2021,11218750,"1,172,010.99",CHEMONICS INTERNATIONAL INC,Programme Spend (Oracle Projects Control Account)
FCO,FCO,04/06/2021,11211589,"1,076,273.59",GW CONSULTING UK LTD,UK Mobile Guarding Contract overseas
FCO,FCO,14/06/2021,11224499,"1,035,232.55",MOTT MACDONALD LTD,Programme Spend (Oracle Projects Control Account)
FCO,FCO,07/06/2021,11214335,"1,000,000.00",UNITED NATIONS,Programme Spend (Oracle Projects Control Account)
FCO,FCO,23/06/2021,11236337,"1,000,000.00",GOVERNMENT LEGAL DEPARTMENT,Misc Expenditure (only to be used if no other suitable account)
FCO,FCO,30/06/2021,11244767,"982,735.54",ASEAN SECRETARIAT,Programme Spend (Oracle Projects Control Account)
FCO,FCO,01/06/2021,11207688,"943,083.35",DAI GLOBAL UK LTD,Programme Spend (Oracle Projects Control Account)
FCO,FCO,22/06/2021,11234134,"926,409.47",DIPLOMATIC SERVICE BUREAU,Multiple Accounts
FCO,FCO,01/06/2021,11207764,"910,263.04",FCDO POSTS,Funding Overseas Posts
FCO,FCO,01/06/2021,11207702,"891,197.59",DAI GLOBAL UK LTD,Programme Spend (Oracle Projects Control Account)
FCO,FCO,01/06/2021,11207772,"835,807.47",FCDO POSTS,Funding Overseas Posts
FCO,FCO,01/06/2021,11207760,"819,463.42",FCDO POSTS,Funding Overseas Posts
FCO,FCO,14/06/2021,11224811,"800,000.00",WESTMINSTER FOUNDATION FOR DEMOCRACY,Programme Spend (Oracle Projects Control Account)
FCO,FCO,23/06/2021,11236453,"765,830.70",VODAFONE LTD CABLE AND WIRELESS UK,IT Networking
FCO,FCO,11/06/2021,11222427,"763,729.11",CHEMONICS INTERNATIONAL INC,Programme Spend (Oracle Projects Control Account)
FCO,FCO,28/06/2021,11241707,"746,635.43",COMPUTACENTER UK LTD,IT Support
FCO,FCO,01/06/2021,11207776,"723,587.09",FCDO POSTS,Funding Overseas Posts
FCO,FCO,11/06/2021,11222588,"710,000.00",JLL PROPERTY CONSULTANTS PTE LTD POE,FMCU POE Trust Account Debtor
FCO,FCO,29/06/2021,11243272,"706,258.00",FCDO SERVICES,Sundries
FCO,FCO,11/06/2021,11222595,"691,943.94",FCDO POSTS,Funding Overseas Posts
FCO,FCO,09/06/2021,11218973,"666,789.00",IOM INTERNATIONAL ORG FOR MIGRATION,Programme Spend (Oracle Projects Control Account)
FCO,FCO,08/06/2021,11217139,"655,428.42",RISK ADVISORY GROUP GS LTD,Programme Spend (Oracle Projects Control Account)
FCO,FCO,01/06/2021,11207884,"646,781.00",THE BRITISH COUNCIL,Programme Spend (Oracle Projects Control Account)
FCO,FCO,08/06/2021,11217493,"617,601.74",HYDROGRAPHIC OFFICE,Programme Spend (Oracle Projects Control Account)
FCO,FCO,01/06/2021,11207533,"616,666.00",FCDO SERVICES,IT Management and Change
FCO,FCO,09/06/2021,11218812,"611,000.00",STADIUM MANAGEMENT LTD,Inward visits to the UK and UK Conferences
FCO,FCO,01/06/2021,11207778,"595,309.08",FCDO POSTS,Funding Overseas Posts
FCO,FCO,10/06/2021,11220847,"594,243.00",COMPUTACENTER UK LTD,Multiple Accounts
FCO,FCO,23/06/2021,11236447,"582,662.95",VODAFONE LTD CABLE AND WIRELESS UK,IT Networking
FCO,FCO,02/06/2021,11209127,"570,637.43",ARTEOS GP LIMITED AND CO KG,Multiple Accounts
FCO,FCO,18/06/2021,11230617,"570,000.00",MARSHALL AID COMMERATION COMMISSION,Programme Spend (Oracle Projects Control Account)
FCO,FCO,01/06/2021,11223016,"560,359.46",THE ROYAL BANK OF SCOTLAND,Corporate Credit Card Clearing Account
FCO,FCO,23/06/2021,11236538,"526,446.91",ACCOMMODATION PROVIDER,Rental Payments - non residential
FCO,FCO,22/06/2021,11234748,"523,010.64",SHELL NIG CLOSED PENSION FUND ADMIN,Multiple Accounts
FCO,FCO,01/06/2021,11200665,"500,000.00",UNDP CONTRIBUTIONS,Programme Spend (Oracle Projects Control Account)
FCO,FCO,22/06/2021,11234712,"500,000.00",GREAT BRITAIN-CHINA CENTRE,Programme Spend (Oracle Projects Control Account)
FCO,FCO,17/06/2021,11228876,"494,865.76",OPERADORA ATXK,Additions-Assets Under Construction (Oracle PA Control Account)
FCO,FCO,14/06/2021,11224228,"485,116.95",TETRA TECH INTERNATIONAL DEVELOPMENT,Programme Spend (Oracle Projects Control Account)
FCO,FCO,10/06/2021,11220724,"479,405.53",FCDO SERVICES,Construction Project more than 10k
FCO,FCO,15/06/2021,11226291,"475,572.00",KPMG FIDUCIAIRE,Multiple Accounts
FCO,FCO,01/06/2021,11207675,"474,948.91",FCDO POSTS,Funding Overseas Posts
FCO,FCO,01/06/2021,11207664,"458,036.78",FCDO POSTS,Funding Overseas Posts
FCO,FCO,01/06/2021,11207706,"442,782.22",FCDO POSTS,Funding Overseas Posts
FCO,FCO,09/06/2021,11219577,"435,829.81",TREGENNA CASTLE HOTEL,Inward visits to the UK and UK Conferences
FCO,FCO,21/06/2021,11233374,"420,718.56",INTERSERVE FM LTD,Multiple Accounts
FCO,FCO,24/06/2021,11237852,"417,348.00",ACTED,Programme Spend (Oracle Projects Control Account)
FCO,FCO,08/06/2021,11216400,"414,900.66",GOVERNMENT COMMUNICATIONS BUREAU ADMIN A/C 6253,Customer Refund Account
FCO,FCO,16/06/2021,11227607,"407,350.03",GROH UND RANDEL STEUERBERATER,Multiple Accounts
FCO,FCO,17/06/2021,11229281,"400,800.60",PRICEWATERHOUSECOOPERS LLP,Programme Spend (Oracle Projects Control Account)
FCO,FCO,10/06/2021,11220930,"393,465.00",COMPUTACENTER UK LTD,IT Management and Change
FCO,FCO,04/06/2021,11211554,"389,687.70",KPMG LLP,Programme Spend (Oracle Projects Control Account)
FCO,FCO,17/06/2021,11229316,"382,561.92",ZINC NETWORK LIMITED,Programme Spend (Oracle Projects Control Account)
FCO,FCO,09/06/2021,11218816,"377,000.00",STADIUM MANAGEMENT LTD,Inward visits to the UK and UK Conferences
FCO,FCO,01/06/2021,11207704,"365,402.80",FCDO POSTS,Funding Overseas Posts
FCO,FCO,01/06/2021,11207781,"360,348.19",FCDO POSTS,Funding Overseas Posts
FCO,FCO,29/06/2021,11244353,"359,200.46",GROUP DEVELOPMENT PAKISTAN,Programme Spend (Oracle Projects Control Account)
FCO,FCO,10/06/2021,11220841,"353,355.36",SIREN ASSOCIATES LTD,Programme Spend (Oracle Projects Control Account)
FCO,FCO,04/06/2021,11211681,"350,226.39",THE ASSOCIATION OF COMMONWEALTH UNIVERSITIES,Programme Spend (Oracle Projects Control Account)
FCO,FCO,10/06/2021,11221182,"348,406.85",MERCY CORPS,Programme Spend (Oracle Projects Control Account)
FCO,FCO,09/06/2021,11218802,"345,000.00",STADIUM MANAGEMENT LTD,Inward visits to the UK and UK Conferences
FCO,FCO,18/06/2021,11230831,"337,728.86",CONCILIATION RESOURCES,Programme Spend (Oracle Projects Control Account)
FCO,FCO,28/06/2021,11241503,"334,288.19",GILBERT ASH LIMITED,Additions-Assets Under Construction (Oracle PA Control Account)
FCO,FCO,29/06/2021,11243398,"326,555.58",885 SECOND AVENUE LESSEE LLC,Multiple Accounts
FCO,FCO,28/06/2021,11240763,"325,929.00",ICF CONSULTING SERVICES LIMITED,Programme Spend (Oracle Projects Control Account)
FCO,FCO,23/06/2021,11236177,"325,000.00",NORWEGIAN REFUGEE COUNCIL,Programme Spend (Oracle Projects Control Account)
FCO,FCO,01/06/2021,11207673,"317,102.39",FCDO POSTS,Funding Overseas Posts
FCO,FCO,30/06/2021,11244823,"308,333.00",FCDO SERVICES,IT Management and Change
FCO,FCO,01/06/2021,11207654,"303,008.95",FCDO POSTS,Funding Overseas Posts
FCO,FCO,14/06/2021,11224403,"302,946.00",EDEN PROJECT LTD,Inward visits to the UK and UK Conferences
FCO,FCO,18/06/2021,11230245,"302,803.61",CLICKSUPER,Multiple Accounts
FCO,FCO,02/06/2021,11209320,"299,996.43",ATALIAN SERVEST,Misc Security Payments
FCO,FCO,28/06/2021,11241087,"298,330.26",ATALIAN SERVEST,Misc Security Payments
FCO,FCO,01/06/2021,11207793,"290,428.13",FCDO POSTS,Funding Overseas Posts
FCO,FCO,22/06/2021,11234777,"288,551.63",SHELL NIG CLOSED PENSION FUND ADMIN,Multiple Accounts
FCO,FCO,01/06/2021,11207708,"284,988.39",FCDO POSTS,Funding Overseas Posts
FCO,FCO,01/06/2021,11207658,"281,868.79",FCDO POSTS,Funding Overseas Posts
FCO,FCO,11/06/2021,11222567,"281,868.79",FCDO POSTS,Funding Overseas Posts
FCO,FCO,03/06/2021,11210203,"281,567.00",JRR ASSOCIATION,Programme Spend (Oracle Projects Control Account)
FCO,FCO,23/06/2021,11236926,"280,623.73",CBRE INC,Estates Management Services
FCO,FCO,08/06/2021,11217242,"279,727.48",JLL PROPERTY CONSULTANTS PTE LTD,Multiple Accounts
FCO,FCO,22/06/2021,11234100,"279,142.32",SHANGHAI FOREIGN AGENCY SERVICE COMPANY,Multiple Accounts
FCO,FCO,11/06/2021,11222596,"275,126.82",FCDO POSTS,Funding Overseas Posts
FCO,FCO,30/06/2021,11244850,"272,809.50",FCDO SERVICES,Residential Property Services
FCO,FCO,01/06/2021,11207913,"272,685.93",URSSAF,Multiple Accounts
FCO,FCO,02/06/2021,11209248,"272,327.50",FCDO SERVICES,Residential Property Services
FCO,FCO,22/06/2021,11234204,"270,255.04",BAE SYSTEMS APPLIED INTELLIGENCE LIMITED,IT Management and Change
FCO,FCO,11/06/2021,11222628,"265,921.42",FCDO POSTS,Funding Overseas Posts
FCO,FCO,11/06/2021,11222477,"265,540.00",WORLD HEALTH ORGANISATION,Programme Spend (Oracle Projects Control Account)
FCO,FCO,04/06/2021,11211998,"262,698.36",ATLANTIC COUNCIL DIGITAL FORENSIC RESEARCH LAB,Programme Spend (Oracle Projects Control Account)
FCO,FCO,01/06/2021,11207649,"261,433.30",FCDO POSTS,Funding Overseas Posts
FCO,FCO,18/06/2021,11230365,"261,313.33",POMERLEAU INC,Additions-Assets Under Construction (Oracle PA Control Account)
FCO,FCO,01/06/2021,11207766,"258,869.79",FCDO POSTS,Funding Overseas Posts
FCO,FCO,30/06/2021,11244864,"258,642.36",FCDO SERVICES,Additions-Assets Under Construction (Oracle PA Control Account)
FCO,FCO,01/06/2021,11207754,"255,112.89",FCDO POSTS,Funding Overseas Posts
FCO,FCO,03/06/2021,11210485,"253,907.41",HALA SYSTEMS INC,Programme Spend (Oracle Projects Control Account)
FCO,FCO,10/06/2021,11220924,"251,967.00",COMPUTACENTER UK LTD,IT Management and Change
FCO,FCO,01/06/2021,11207857,"250,000.00",FCDO POSTS,Funding Overseas Posts
FCO,FCO,04/06/2021,11212014,"250,000.00",OFFICE OF THE HIGH COMMISSIONER FOR HUMAN RIGHTS OHCHR,Programme Spend (Oracle Projects Control Account)
FCO,FCO,08/06/2021,11217355,"244,803.79",EDF ENERGY,Electricity Non-Residential
FCO,FCO,04/06/2021,11211803,"243,490.24",UNITED NATIONS HABITAT AND HUMAN SETTLEMENTS FOUNDATION,Programme Spend (Oracle Projects Control Account)
FCO,FCO,02/06/2021,11209009,"242,257.31",BBC MEDIA ACTION,Programme Spend (Oracle Projects Control Account)
FCO,FCO,11/06/2021,11222629,"241,200.07",FCDO POSTS,Funding Overseas Posts
FCO,FCO,10/06/2021,11220791,"235,776.86",ZINC NETWORK LIMITED,Programme Spend (Oracle Projects Control Account)
FCO,FCO,23/06/2021,11237024,"233,778.23",SHELL NIG CLOSED PENSION FUND ADMIN,Multiple Accounts
FCO,FCO,01/06/2021,11207765,"232,681.24",FCDO POSTS,Funding Overseas Posts
FCO,FCO,21/06/2021,11233302,"232,046.71",INTERSERVE FM LTD,Construction Project more than 10k
FCO,FCO,01/06/2021,11207660,"230,427.74",FCDO POSTS,Funding Overseas Posts
FCO,FCO,28/06/2021,11241694,"228,140.07",GILBERT ASH LIMITED,Additions-Assets Under Construction (Oracle PA Control Account)
FCO,FCO,16/06/2021,11227716,"227,780.16",HYDRO OTTAWA,Multiple Accounts
FCO,FCO,22/06/2021,11234720,"226,054.94",CABINET OFFICE,UK - Air Travel
FCO,FCO,23/06/2021,11236370,"226,052.94",CABINET OFFICE,UK - Air Travel
FCO,FCO,01/06/2021,11207607,"220,597.58",BAE SYSTEMS APPLIED INTELLIGENCE LIMITED,IT Management and Change
FCO,FCO,28/06/2021,11241566,"220,597.58",BAE SYSTEMS APPLIED INTELLIGENCE LIMITED,IT Management and Change
FCO,FCO,11/06/2021,11222741,"220,545.86",WILLIS TOWERS WATSON SOUTHEAST INC,Multiple Accounts
FCO,FCO,14/06/2021,11224322,"219,903.44",GW CONSULTING UK LTD,UK Guarding Contracts Overseas
FCO,FCO,17/06/2021,11229023,"217,266.08",PROFESSIONAL LANGUAGE SOLUTIONS,Language Tuition: Essential
FCO,FCO,08/06/2021,11216345,"216,983.32",BSI STANDARDS INSTITUTION & TRAINING,Programme Spend (Oracle Projects Control Account)
FCO,FCO,01/06/2021,11207576,"216,811.50",FCDO SERVICES,Construction Project more than 10k
FCO,FCO,01/06/2021,11208090,"215,989.06",GILBERT ASH LIMITED,Additions-Assets Under Construction (Oracle PA Control Account)
FCO,FCO,24/06/2021,11238060,"215,524.63",DAI GLOBAL UK LTD,Programme Spend (Oracle Projects Control Account)
FCO,FCO,28/06/2021,11240819,"215,220.95",GOVERNMENT PROPERTY AGENCY,Customer Refund Account
FCO,FCO,16/06/2021,11227809,"212,824.90",OROSTREAM INTERNATIONAL CONTRACTS LTD,Additions-Assets Under Construction (Oracle PA Control Account)
FCO,FCO,01/06/2021,11207775,"211,823.68",FCDO POSTS,Funding Overseas Posts
FCO,FCO,07/06/2021,11214166,"210,000.00",UNITED NATIONS,Programme Spend (Oracle Projects Control Account)
FCO,FCO,22/06/2021,11234451,"208,880.47",SEGURIDAD SOCIAL,Multiple Accounts
FCO,FCO,29/06/2021,11243114,"208,858.00",CAPGEMINI UK PLC,IT Management and Change
FCO,FCO,29/06/2021,11243119,"204,478.00",CAPGEMINI UK PLC,IT Management and Change
FCO,FCO,18/06/2021,11230524,"203,760.27",ADAM SMITH INTERNATIONAL,Programme Spend (Oracle Projects Control Account)
FCO,FCO,01/06/2021,11207784,"203,512.52",FCDO POSTS,Funding Overseas Posts
FCO,FCO,16/06/2021,11227748,"203,049.70",TETRA TECH INTERNATIONAL DEVELOPMENT,Programme Spend (Oracle Projects Control Account)
FCO,FCO,09/06/2021,11219075,"201,368.31",ORACLE CORPORATION (UK) LTD,IT Hosting
FCO,FCO,08/06/2021,11217390,"200,000.00",UNITED NATIONS,Programme Spend (Oracle Projects Control Account)
FCO,FCO,01/06/2021,11207770,"198,263.59",FCDO POSTS,Funding Overseas Posts
FCO,FCO,24/06/2021,11237872,"197,846.32",OVERSEAS SUPPLY SERVICES LTD,Estates Management Services
FCO,FCO,01/06/2021,11207641,"196,625.33",FCDO POSTS,Funding Overseas Posts
FCO,FCO,23/06/2021,11236303,"194,682.42",CAPGEMINI UK PLC,IT Support
FCO,FCO,29/06/2021,11243308,"194,615.97",PRICEWATERHOUSECOOPERS LLP,Programme Spend (Oracle Projects Control Account)
FCO,FCO,01/06/2021,11207946,"193,526.91",THE BRITISH COUNCIL,Programme Spend (Oracle Projects Control Account)
FCO,FCO,01/06/2021,11207771,"190,142.74",FCDO POSTS,Funding Overseas Posts
FCO,FCO,01/06/2021,11207773,"189,084.08",FCDO POSTS,Funding Overseas Posts
FCO,FCO,01/06/2021,11207783,"188,867.17",FCDO POSTS,Funding Overseas Posts
FCO,FCO,18/06/2021,11231063,"188,289.71",SECUREX AGENCIES LTD,Staff and Other Advances AP Control (Oracle Ap Control Account)
FCO,FCO,24/06/2021,11238153,"186,264.54",845 THIRD LP,Multiple Accounts
FCO,FCO,01/06/2021,11207785,"186,122.81",FCDO POSTS,Funding Overseas Posts
FCO,FCO,14/06/2021,11224413,"183,324.18",PDP PROJECTS LIMITED,Unscheduled repairs to building infrastructure
FCO,FCO,17/06/2021,11228905,"182,840.21",GUANGDONG SERVICE OFFICE FOR FOREIGN ESTABLISHMENTS,Multiple Accounts
FCO,FCO,07/06/2021,11214382,"179,230.36",OVERSEAS SUPPLY SERVICES LTD,Estates Management Services
FCO,FCO,01/06/2021,11207671,"178,878.87",FCDO POSTS,Funding Overseas Posts
FCO,FCO,29/06/2021,11243442,"178,521.82",PARK DEVELOPMENTS LTD,Additions-Assets Under Construction (Oracle PA Control Account)
FCO,FCO,04/06/2021,11211586,"176,752.81",GW CONSULTING UK LTD,UK Mobile Guarding Contract overseas
FCO,FCO,02/06/2021,11209077,"174,840.00",FLIGHT CENTRE UK,Inward visits to the UK and UK Conferences
FCO,FCO,01/06/2021,11207844,"174,000.00",FCDO POSTS,Funding Overseas Posts
FCO,FCO,24/06/2021,11237782,"173,770.52",OVERSEAS SUPPLY SERVICES LTD,Estates Management Services
FCO,FCO,09/06/2021,11218887,"171,026.41",MINIMAL RISK CONSULTANCY LTD,UK Guarding Contracts Overseas
FCO,FCO,07/06/2021,11215815,"170,626.59",CARBON TRUST BEIJING CONSULTING LIMITED,Programme Spend (Oracle Projects Control Account)
FCO,FCO,30/06/2021,11245046,"167,079.04",SEARCH FOR COMMON GROUND,Programme Spend (Oracle Projects Control Account)
FCO,FCO,23/06/2021,11236125,"164,764.83",THE ASIA FOUNDATION,Programme Spend (Oracle Projects Control Account)
FCO,FCO,01/06/2021,11207752,"162,421.17",FCDO POSTS,Funding Overseas Posts
FCO,FCO,11/06/2021,11222626,"162,030.54",FCDO POSTS,Funding Overseas Posts
FCO,FCO,10/06/2021,11220789,"161,444.39",FCDO SERVICES,Construction Project more than 10k
FCO,FCO,03/06/2021,11210688,"159,626.73",JLL PROPERTY CONSULTANTS PTE LTD,Multiple Accounts
FCO,FCO,18/06/2021,11230994,"158,550.62",Pace Construction,Programme Spend (Oracle Projects Control Account)
FCO,FCO,11/06/2021,11223525,"157,921.35",CHINA AUTOMOTIVE TECHNOLOGY AND RESEARCH CENTRE CO LTD,Programme Spend (Oracle Projects Control Account)
FCO,FCO,30/06/2021,11245091,"156,070.79",HEALIX INTERNATIONAL LTD,FCO Healthcare Scheme
FCO,FCO,17/06/2021,11229398,"155,457.25",ATLANTIC COUNCIL DIGITAL FORENSIC RESEARCH LAB,Programme Spend (Oracle Projects Control Account)
FCO,FCO,28/06/2021,11241567,"155,380.17",EMBASSY OF BULGARIA,Rental Payments - non residential
FCO,FCO,02/06/2021,11209474,"154,914.21",TORRE ESPACIO CASTELLANA SAU,Multiple Accounts
FCO,FCO,16/06/2021,11227627,"154,817.57",THE ROYAL BANK OF SCOTLAND,Multiple Accounts
FCO,FCO,21/06/2021,11233233,"153,685.05",INTERSERVE FM LTD,Multiple Accounts
FCO,FCO,03/06/2021,11210660,"153,527.83",DEFENCE BUSINESS SERVICES FINANCE,Mod Guarding Services Residential
FCO,FCO,18/06/2021,11230441,"153,526.52",ADAM SMITH INTERNATIONAL,Programme Spend (Oracle Projects Control Account)
FCO,FCO,14/06/2021,11224270,"151,500.00",UNITED NATIONS,Programme Spend (Oracle Projects Control Account)
FCO,FCO,09/06/2021,11219055,"151,347.80",ST ANDREWS REFUGEE SERVICES,Programme Spend (Oracle Projects Control Account)
FCO,FCO,01/06/2021,11207672,"150,306.53",FCDO POSTS,Funding Overseas Posts
FCO,FCO,11/06/2021,11222601,"149,848.79",JLL PROPERTY CONSULTANTS PTE LTD POE,FMCU POE Trust Account Debtor
FCO,FCO,30/06/2021,11244692,"149,827.77",Pace Construction,Programme Spend (Oracle Projects Control Account)
FCO,FCO,17/06/2021,11228785,"148,784.44",ACCOMMODATION PROVIDER,UK Guarding Contracts Overseas
FCO,FCO,03/06/2021,11210452,"148,143.22",ATKINS LTD,Additions-Assets Under Construction (Oracle PA Control Account)
FCO,FCO,24/06/2021,11238169,"147,630.00",TRANSPARENCY INTERNATIONAL UKRAINE,Programme Spend (Oracle Projects Control Account)
FCO,FCO,01/06/2021,11207711,"146,161.12",FCDO POSTS,Funding Overseas Posts
FCO,FCO,04/06/2021,11212377,"144,980.30",GENERALI ESTATE SPA,Multiple Accounts
FCO,FCO,23/06/2021,11236485,"144,924.00",THE BRITISH COUNCIL,Programme Spend (Oracle Projects Control Account)
FCO,FCO,29/06/2021,11244351,"142,758.97",CRSS,Programme Spend (Oracle Projects Control Account)
FCO,FCO,28/06/2021,11240803,"142,570.14",GOVERNMENT COMMUNICATIONS BUREAU ADMIN A/C 6253,Customer Refund Account
FCO,FCO,02/06/2021,11208855,"142,531.00",PARTNERSHIP FOR DIALOGUE AND DEVELOPMENT,Programme Spend (Oracle Projects Control Account)
FCO,FCO,28/06/2021,11241010,"142,336.00",MILTON KEYNES COUNCIL,Rates Taxes Non-Residential
FCO,FCO,10/06/2021,11220713,"140,881.46",ALBANY ASSOCIATES,Programme Spend (Oracle Projects Control Account)
FCO,FCO,21/06/2021,11233036,"139,753.00",INNOVATION AND INSIGHT FZE,Programme Spend (Oracle Projects Control Account)
FCO,FCO,01/06/2021,11207763,"137,011.81",FCDO POSTS,Funding Overseas Posts
FCO,FCO,24/06/2021,11238109,"136,990.93",THE ROYAL BANK OF SCOTLAND,Multiple Accounts
FCO,FCO,04/06/2021,11212054,"136,600.00",CAUTION YOUR BLAST LTD,Additions-Assets Under Construction (Oracle PA Control Account)
FCO,FCO,15/06/2021,11225885,"136,343.00",CROWN AGENTS LIMITED,Programme Spend (Oracle Projects Control Account)
FCO,FCO,24/06/2021,11237690,"135,891.64",DATACOM EMPLOYER SERVICES,Multiple Accounts
FCO,FCO,30/06/2021,11244855,"135,000.00",FCDO SERVICES,Additions-Assets Under Construction (Oracle PA Control Account)
FCO,FCO,01/06/2021,11207755,"134,976.82",FCDO POSTS,Funding Overseas Posts
FCO,FCO,11/06/2021,11222627,"134,976.82",FCDO POSTS,Funding Overseas Posts
FCO,FCO,18/06/2021,11230389,"133,445.58",FCDO SERVICES,IT Support
FCO,FCO,01/06/2021,11207932,"133,211.13",COMPUTACENTER UK LTD,IT Support
FCO,FCO,07/06/2021,11215803,"132,242.43",CHINA HEALTH INSURANCE RESEARCH ASSOCIATION,Programme Spend (Oracle Projects Control Account)
FCO,FCO,01/06/2021,11207714,"128,965.70",FCDO POSTS,Funding Overseas Posts
FCO,FCO,21/06/2021,11233341,"128,909.29",INTERSERVE FM LTD,Multiple Accounts
FCO,FCO,01/06/2021,11207787,"127,880.90",FCDO POSTS,Funding Overseas Posts
FCO,FCO,15/06/2021,11226468,"127,810.80",CORPORATE TRAVEL MANAGEMENT NORTH LTD,Consular Crisis Expenditure
FCO,FCO,02/06/2021,11209459,"127,217.09",JLL PROPERTY CONSULTANTS PTE LTD,Multiple Accounts
FCO,FCO,07/06/2021,11215810,"126,109.57",CHINA ENERGY ENGINEERING GROUP GUANGDONG ELECTRIC POWER DESIGN INSTITUTE CO LTD,Programme Spend (Oracle Projects Control Account)
FCO,FCO,28/06/2021,11241030,"125,870.60",ZINC NETWORK LIMITED,Programme Spend (Oracle Projects Control Account)
FCO,FCO,28/06/2021,11241068,"124,571.91",AXIOM INTERNATIONAL LTD,Programme Spend (Oracle Projects Control Account)
FCO,FCO,11/06/2021,11222587,"124,448.27",AECOM,Additions-Assets Under Construction (Oracle PA Control Account)
FCO,FCO,01/06/2021,11207791,"124,357.49",FCDO POSTS,Funding Overseas Posts
FCO,FCO,18/06/2021,11230999,"124,309.17",WMG and SUN and GHC,Programme Spend (Oracle Projects Control Account)
FCO,FCO,15/06/2021,11226317,"124,136.02",KPMG FIDUCIAIRE,Multiple Accounts
FCO,FCO,30/06/2021,11244963,"123,778.00",INNOVATION AND INSIGHT FZE,Programme Spend (Oracle Projects Control Account)
FCO,FCO,30/06/2021,11245146,"123,478.37",TETRA TECH MANAGEMENT SERVICES LIMITED,Additions-Assets Under Construction (Oracle PA Control Account)
FCO,FCO,17/06/2021,11228894,"121,672.00",FCDO SERVICES,Inward visits to the UK and UK Conferences
FCO,FCO,04/06/2021,11223041,"121,645.57",THE ROYAL BANK OF SCOTLAND,GPC Clearing Account
FCO,FCO,23/06/2021,11236909,"120,732.34",WMG and SUN and GHC,Programme Spend (Oracle Projects Control Account)
FCO,FCO,24/06/2021,11237869,"120,454.53",COMPUTACENTER UK LTD,IT/IS Consultancy
FCO,FCO,21/06/2021,11233099,"120,424.10",TRANSAMERICA,Multiple Accounts
FCO,FCO,24/06/2021,11238136,"119,671.64",FC BROWN STEEL EQUIPMENT LTD,"Purchase of Furniture, Fittings and Domestic Appliances"
FCO,FCO,01/06/2021,11207768,"119,032.43",FCDO POSTS,Funding Overseas Posts
FCO,FCO,01/06/2021,11207667,"118,384.89",FCDO POSTS,Funding Overseas Posts
FCO,FCO,03/06/2021,11210528,"116,998.22",UNITED NATIONS,Programme Spend (Oracle Projects Control Account)
FCO,FCO,22/06/2021,11234168,"116,151.75",FCDO SERVICES,Additions-Assets Under Construction (Oracle PA Control Account)
FCO,FCO,21/06/2021,11233295,"116,139.32",INTERSERVE FM LTD,Multiple Accounts
FCO,FCO,23/06/2021,11236327,"116,010.67",OVERSEAS SUPPLY SERVICES LTD,Multiple Accounts
FCO,FCO,01/06/2021,11207640,"115,862.17",FCDO POSTS,Funding Overseas Posts
FCO,FCO,09/06/2021,11219531,"115,536.87",Alexander Mann Solutions Limited,Organisation and Change Management Consultancy
FCO,FCO,07/06/2021,11214575,"115,397.08",HOTELLINE FOR TOURISTIC INVESTMENT LTD,Multiple Accounts
FCO,FCO,29/06/2021,11243437,"115,182.53",PARK DEVELOPMENTS LTD,Additions-Assets Under Construction (Oracle PA Control Account)
FCO,FCO,18/06/2021,11230395,"113,814.78",FCDO SERVICES,IT Support
FCO,FCO,01/06/2021,11207713,"113,489.81",FCDO POSTS,Funding Overseas Posts
FCO,FCO,02/06/2021,11209105,"113,065.87",MITEL NETWORKS LTD,IT Networking
FCO,FCO,30/06/2021,11245024,"113,065.87",MITEL NETWORKS LTD,IT Networking
FCO,FCO,29/06/2021,11243592,"112,910.90",FCDO SERVICES,Customer Refund Account
FCO,FCO,16/06/2021,11227651,"112,556.89",WOMEN FOR WOMEN INTERNATIONAL,Programme Spend (Oracle Projects Control Account)
FCO,FCO,01/06/2021,11207757,"111,817.95",FCDO POSTS,Funding Overseas Posts
FCO,FCO,22/06/2021,11234245,"111,811.98",ADP,Multiple Accounts
FCO,FCO,30/06/2021,11245058,"110,365.00",DISCOVERY QUAY ENTERPRISE TRADING LTD,Inward visits to the UK and UK Conferences
FCO,FCO,28/06/2021,11241013,"110,080.80",ZINC NETWORK LIMITED,Programme Spend (Oracle Projects Control Account)
FCO,FCO,07/06/2021,11223041,"109,779.06",THE ROYAL BANK OF SCOTLAND,GPC Clearing Account
FCO,FCO,02/06/2021,11227479,"109,412.13",THE ROYAL BANK OF SCOTLAND,Travel Package Advance Overseas Posting (Credit Card Payments Only)
FCO,FCO,08/06/2021,11217489,"108,457.63",TRANSAMERICA,Multiple Accounts
FCO,FCO,15/06/2021,11225773,"108,100.00",CONTROLLED BUILDING MEASURES LIMITED,Additions-Assets Under Construction (Oracle PA Control Account)
FCO,FCO,30/06/2021,11245085,"107,815.00",INNOVATION AND INSIGHT FZE,Programme Spend (Oracle Projects Control Account)
FCO,FCO,07/06/2021,11214212,"107,466.45",ADP,Multiple Accounts
FCO,FCO,28/06/2021,11241514,"107,286.31",NATIONAL HOTEL COMPLEX,Rental Payments - non residential
FCO,FCO,01/06/2021,11207674,"105,700.80",FCDO POSTS,Funding Overseas Posts
FCO,FCO,22/06/2021,11234804,"105,486.46",INTERSERVE FM LTD,Multiple Accounts
FCO,FCO,11/06/2021,11222419,"104,257.32",GILBERT ASH LIMITED,Additions-Assets Under Construction (Oracle PA Control Account)
FCO,FCO,21/06/2021,11233297,"104,027.37",INTERSERVE FM LTD,Construction Project more than 10k
FCO,FCO,10/06/2021,11221423,"104,024.92",AETNA,Multiple Accounts
FCO,FCO,02/06/2021,11208906,"103,507.86",BANKERS ASSURANCE SAL,Multiple Accounts
FCO,FCO,01/06/2021,11207586,"102,564.55",BAE SYSTEMS APPLIED INTELLIGENCE LIMITED,IT Management and Change
FCO,FCO,28/06/2021,11241573,"102,564.55",BAE SYSTEMS APPLIED INTELLIGENCE LIMITED,IT Management and Change
FCO,FCO,15/06/2021,11226459,"102,467.37",ERNST AND YOUNG LLP,Programme Spend (Oracle Projects Control Account)
FCO,FCO,16/06/2021,11227828,"102,128.33",ADBLU INTERNATIONAL LIMITED,Additions-Assets Under Construction (Oracle PA Control Account)
FCO,FCO,24/06/2021,11237909,"100,890.00",THE ROYAL BANK OF SCOTLAND,Sundries
FCO,FCO,23/06/2021,11236481,"100,787.00",THE BRITISH COUNCIL,Programme Spend (Oracle Projects Control Account)
FCO,FCO,14/06/2021,11224393,"99,256.52",THE GLOBAL STRATEGY NETWORK,Programme Spend (Oracle Projects Control Account)
FCO,FCO,14/06/2021,11224037,"99,248.16",HOWDEN INSURANCE BROKERS PTE LTD,LS Staff Medical Costs
FCO,FCO,03/06/2021,11210357,"98,637.68",CIVIC,Programme Spend (Oracle Projects Control Account)
FCO,FCO,22/06/2021,11234226,"97,799.31",NORWEGIAN CHURCH AID,Programme Spend (Oracle Projects Control Account)
FCO,FCO,03/06/2021,11223041,"97,370.14",THE ROYAL BANK OF SCOTLAND,GPC Clearing Account
FCO,FCO,02/06/2021,11223041,"97,206.56",THE ROYAL BANK OF SCOTLAND,GPC Clearing Account
FCO,FCO,09/06/2021,11219552,"96,609.20",Alexander Mann Solutions Limited,Organisation and Change Management Consultancy
FCO,FCO,24/06/2021,11237838,"96,277.59",BBC MEDIA ACTION,Programme Spend (Oracle Projects Control Account)
FCO,FCO,01/06/2021,11207918,"96,128.00",ADAM SMITH INTERNATIONAL,Programme Spend (Oracle Projects Control Account)
FCO,FCO,03/06/2021,11210115,"95,118.51",AFRICAN SKIES LTD,Local Guards
FCO,FCO,23/06/2021,11236443,"94,384.90",VODAFONE LTD CABLE AND WIRELESS UK,IT Networking
FCO,FCO,23/06/2021,11236458,"94,154.16",TETRA TECH INTERNATIONAL DEVELOPMENT BV,Programme Spend (Oracle Projects Control Account)
FCO,FCO,09/06/2021,11229299,"93,942.19",THE ROYAL BANK OF SCOTLAND,GPC Clearing Account
FCO,FCO,07/06/2021,11214165,"93,766.37",SENATOR INTERNATIONAL LTD,"Purchase of Furniture, Fittings and Domestic Appliances"
FCO,FCO,01/06/2021,11208085,"92,749.27",BABCOCK VEHICLE ENGINEERING LTD,Additions-Assets Under Construction (Oracle PA Control Account)
FCO,FCO,17/06/2021,11228882,"92,573.52",THE BRITISH COUNCIL,Programme Spend (Oracle Projects Control Account)
FCO,FCO,17/06/2021,11229265,"92,313.41",NACO,Recharge Suspense Account (Oracle PA Control Account)
FCO,FCO,17/06/2021,11229004,"92,050.17",AFRICAN SKIES LTD,Local Guards
FCO,FCO,18/06/2021,11230968,"91,825.60",MINIMAL RISK CONSULTANCY LTD,Additions-Assets Under Construction (Oracle PA Control Account)
FCO,FCO,17/06/2021,11228938,"91,130.58",GILBERT ASH LIMITED,Additions-Assets Under Construction (Oracle PA Control Account)
FCO,FCO,01/06/2021,11208043,"91,058.38",SCHOOL,Multiple Accounts
FCO,FCO,08/06/2021,11217612,"91,036.23",SHELL NIG CLOSED PENSION FUND ADMIN,Multiple Accounts
FCO,FCO,17/06/2021,11229298,"90,244.00",G4S RISK MANAGEMENT LIMITED,Programme Spend (Oracle Projects Control Account)
FCO,FCO,22/06/2021,11234782,"90,181.76",SHELL NIG CLOSED PENSION FUND ADMIN,Multiple Accounts
FCO,FCO,01/06/2021,11207780,"90,002.06",FCDO POSTS,Funding Overseas Posts
FCO,FCO,23/06/2021,11236296,"90,000.00",GRADUATE INSTITUTE OF INTERNATIONAL STUDIES,Programme Spend (Oracle Projects Control Account)
FCO,FCO,01/06/2021,11207749,"89,467.40",FCDO POSTS,Funding Overseas Posts
FCO,FCO,01/06/2021,11205234,"89,094.62",FCDO SERVICES,Additions-Assets Under Construction (Oracle PA Control Account)
FCO,FCO,14/06/2021,11224244,"89,006.08",IOM INTERNATIONAL ORG FOR MIGRATION,Programme Spend (Oracle Projects Control Account)
FCO,FCO,03/06/2021,11210696,"87,968.66",JLL PROPERTY CONSULTANTS PTE LTD,Multiple Accounts
FCO,FCO,29/06/2021,11243205,"87,428.96",CROWN AGENTS LIMITED,Programme Spend (Oracle Projects Control Account)
FCO,FCO,10/06/2021,11220638,"86,913.29",BUPA INTERNATIONAL,Multiple Accounts
FCO,FCO,04/06/2021,11212038,"85,500.00",CAUTION YOUR BLAST LTD,Additions-Assets Under Construction (Oracle PA Control Account)
FCO,FCO,01/06/2021,11166563,"85,454.92",HOME OFFICE,Programme Spend (Oracle Projects Control Account)
FCO,FCO,29/06/2021,11243117,"85,454.92",HOME OFFICE,Programme Spend (Oracle Projects Control Account)
FCO,FCO,08/06/2021,11217289,"84,539.31",BABCOCK VEHICLE ENGINEERING LTD,Additions-Assets Under Construction (Oracle PA Control Account)
FCO,FCO,11/06/2021,11222586,"83,470.90",HUMANIS,Multiple Accounts
FCO,FCO,28/06/2021,11241586,"83,371.92",BAE SYSTEMS APPLIED INTELLIGENCE LIMITED,IT Management and Change
FCO,FCO,15/06/2021,11226333,"83,272.94",KPMG FIDUCIAIRE,Multiple Accounts
FCO,FCO,30/06/2021,11245049,"82,891.00",CAPGEMINI UK PLC,IT/IS Consultancy
FCO,FCO,30/06/2021,11244826,"82,348.00",FCDO SERVICES,Construction Project more than 10k
FCO,FCO,07/06/2021,11214392,"82,311.60",ERNST AND YOUNG LLP,Programme Spend (Oracle Projects Control Account)
FCO,FCO,07/06/2021,11214438,"82,311.60",ERNST AND YOUNG LLP,Programme Spend (Oracle Projects Control Account)
FCO,FCO,07/06/2021,11214444,"82,311.60",ERNST AND YOUNG LLP,Programme Spend (Oracle Projects Control Account)
FCO,FCO,28/06/2021,11241936,"82,311.60",ERNST AND YOUNG LLP,Programme Spend (Oracle Projects Control Account)
FCO,FCO,28/06/2021,11241942,"82,311.60",ERNST AND YOUNG LLP,Programme Spend (Oracle Projects Control Account)
FCO,FCO,28/06/2021,11241944,"82,311.60",ERNST AND YOUNG LLP,Programme Spend (Oracle Projects Control Account)
FCO,FCO,28/06/2021,11241556,"82,230.00",ORACLE CORPORATION (UK) LTD,IT/IS Consultancy
FCO,FCO,17/06/2021,11229102,"81,485.00",GLOBAL DISINFORMATION INDEX,Programme Spend (Oracle Projects Control Account)
FCO,FCO,09/06/2021,11218886,"81,309.73",IOM INTERNATIONAL ORG FOR MIGRATION,Programme Spend (Oracle Projects Control Account)
FCO,FCO,02/06/2021,11209045,"80,606.04",ABROTEA BULGARIA AD,Rental Payments - non residential
FCO,FCO,21/06/2021,11233391,"80,418.92",INTERSERVE FM LTD,Multiple Accounts
FCO,FCO,29/06/2021,11244355,"80,407.60",JINNAH INSTITUTE,Programme Spend (Oracle Projects Control Account)
FCO,FCO,01/06/2021,11207577,"80,371.92",BAE SYSTEMS APPLIED INTELLIGENCE LIMITED,IT Management and Change
FCO,FCO,08/06/2021,11223041,"80,212.45",THE ROYAL BANK OF SCOTLAND,GPC Clearing Account
FCO,FCO,08/06/2021,11216760,"80,027.27",COMPUTACENTER UK LTD,IT/IS Consultancy
FCO,FCO,17/06/2021,11228763,"79,800.00",ERNST AND YOUNG,Programme Spend (Oracle Projects Control Account)
FCO,FCO,28/06/2021,11241561,"79,169.90",THE EGYPTIAN CONSULATE GENERAL IN LONDON,Rental Payments - non residential
FCO,FCO,28/06/2021,11241691,"78,980.66",MOTT MACDONALD LTD,Programme Spend (Oracle Projects Control Account)
FCO,FCO,17/06/2021,11229309,"78,858.55",CARDIFF UNIVERSITY,Programme Spend (Oracle Projects Control Account)
FCO,FCO,17/06/2021,11228960,"78,836.14",STRATAGEM CONSULTING,Programme Spend (Oracle Projects Control Account)
FCO,FCO,01/06/2021,11207656,"78,570.93",FCDO POSTS,Funding Overseas Posts
FCO,FCO,14/06/2021,11224235,"78,253.04",TETRA TECH INTERNATIONAL DEVELOPMENT,Programme Spend (Oracle Projects Control Account)
FCO,FCO,11/06/2021,11222568,"77,513.92",FCDO POSTS,Funding Overseas Posts
FCO,FCO,03/06/2021,11210686,"77,304.94",JLL PROPERTY CONSULTANTS PTE LTD,Multiple Accounts
FCO,FCO,24/06/2021,11238171,"77,136.80",SCHOOL,Schooling for Children at Post
FCO,FCO,11/06/2021,11222441,"77,000.00",ERNST AND YOUNG LLP,Organisation and Change Management Consultancy
FCO,FCO,16/06/2021,11227578,"76,558.80",FCDO SERVICES,IT Networking
FCO,FCO,01/06/2021,11207715,"76,519.65",FCDO POSTS,Funding Overseas Posts
FCO,FCO,04/06/2021,11211565,"75,987.00",ADAM SMITH INTERNATIONAL,Programme Spend (Oracle Projects Control Account)
FCO,FCO,23/06/2021,11236202,"75,667.04",BHC INDIA STAFF PROVIDENT FUND,Multiple Accounts
FCO,FCO,28/06/2021,11241789,"75,226.93",COMPUTACENTER UK LTD,IT Support
FCO,FCO,02/06/2021,11209106,"74,938.94",MITEL NETWORKS LTD,IT Networking
FCO,FCO,30/06/2021,11245029,"74,938.94",MITEL NETWORKS LTD,IT Networking
FCO,FCO,01/06/2021,11207662,"74,695.23",FCDO POSTS,Funding Overseas Posts
FCO,FCO,14/06/2021,11224287,"74,508.99",UNDP CONTRIBUTIONS,Programme Spend (Oracle Projects Control Account)
FCO,FCO,16/06/2021,11227785,"73,999.38",LEGAL AND GENERAL ASSURANCE SOCIETY LTD,Additional Volunteer Contribution
FCO,FCO,01/06/2021,11207843,"73,638.23",FCDO POSTS,Funding Overseas Posts
FCO,FCO,24/06/2021,11238053,"73,261.14",PA CONSULTING GROUP,Programme Spend (Oracle Projects Control Account)
FCO,FCO,01/06/2021,11207948,"73,178.00",TETRA TECH MANAGEMENT SERVICES LIMITED,Programme Spend (Oracle Projects Control Account)
FCO,FCO,24/06/2021,11238208,"72,981.63",BENNETT CONSTRUCTION COMPANY LTD,Programme Spend (Oracle Projects Control Account)
FCO,FCO,10/06/2021,11220850,"72,250.97",MAZARS CINOTTI ACCOUNTING DOO,Multiple Accounts
FCO,FCO,03/06/2021,11210683,"72,215.18",JLL PROPERTY CONSULTANTS PTE LTD,Multiple Accounts
FCO,FCO,23/06/2021,11236470,"71,915.16",TETRA TECH INTERNATIONAL DEVELOPMENT BV,Programme Spend (Oracle Projects Control Account)
FCO,FCO,07/06/2021,11214825,"71,876.54",ACCOMMODATION PROVIDER,Rental Payments - residential
FCO,FCO,02/06/2021,11209353,"71,586.00",CONTROLLED BUILDING MEASURES LIMITED,Additions-Assets Under Construction (Oracle PA Control Account)
FCO,FCO,11/06/2021,11222405,"71,400.67",ARK GROUP DMCC,Programme Spend (Oracle Projects Control Account)
FCO,FCO,01/06/2021,11207650,"70,467.20",FCDO POSTS,Funding Overseas Posts
FCO,FCO,03/06/2021,11210691,"70,369.17",JLL PROPERTY CONSULTANTS PTE LTD,Multiple Accounts
FCO,FCO,08/06/2021,11217388,"70,300.21",CABINET OFFICE,Multiple Accounts
FCO,FCO,15/06/2021,11226390,"70,000.00",UNDP CONTRIBUTIONS,Programme Spend (Oracle Projects Control Account)
FCO,FCO,16/06/2021,11227771,"69,993.61",CBRE LTD,Estates Management Services
FCO,FCO,18/06/2021,11231100,"69,712.79",OCDE OECD,Multiple Accounts
FCO,FCO,23/06/2021,11236255,"68,924.62",ACCOUNTING SOLUTIONS,Multiple Accounts
FCO,FCO,02/06/2021,11208924,"68,707.19",NIA LIMITED,"Purchase of Furniture, Fittings and Domestic Appliances"
FCO,FCO,17/06/2021,11228887,"68,311.66",THE BRITISH COUNCIL,Programme Spend (Oracle Projects Control Account)
FCO,FCO,07/06/2021,11214189,"67,348.00",FIRST CALL PARTNERS,Programme Spend (Oracle Projects Control Account)
FCO,FCO,23/06/2021,11236437,"67,269.10",TETRA TECH MANAGEMENT SERVICES LIMITED,Construction Project more than 10k
FCO,FCO,28/06/2021,11241795,"67,223.31",COMPUTACENTER UK LTD,IT Support
FCO,FCO,29/06/2021,11243735,"67,207.67",LUCONEX SRL,Rental Payments - non residential
FCO,FCO,01/06/2021,11207972,"67,070.10",WOMENS INTERNATIONAL LEAGUE FOR PEACE AND FREEDOM,Programme Spend (Oracle Projects Control Account)
FCO,FCO,01/06/2021,11207582,"66,996.92",BAE SYSTEMS APPLIED INTELLIGENCE LIMITED,IT Management and Change
FCO,FCO,28/06/2021,11241580,"66,996.92",BAE SYSTEMS APPLIED INTELLIGENCE LIMITED,IT Management and Change
FCO,FCO,15/06/2021,11225817,"66,946.19",SEARCH FOR COMMON GROUND,Programme Spend (Oracle Projects Control Account)
FCO,FCO,01/06/2021,11207657,"66,943.84",FCDO POSTS,Funding Overseas Posts
FCO,FCO,23/06/2021,11236584,"66,303.42",INSTITUTO DE GESTAO FINANCEIRA DA SEGURANCA SOCIAL,Multiple Accounts
FCO,FCO,30/06/2021,11244885,"65,680.16",MERITAIN HEALTH,Multiple Accounts
FCO,FCO,01/06/2021,11207908,"65,326.50",MOTT MACDONALD LTD,Programme Spend (Oracle Projects Control Account)
FCO,FCO,08/06/2021,11216348,"64,665.42",BRIGHT HORIZONS FAMILY SOLUTION LTD,FCO KCS Nursery
FCO,FCO,09/06/2021,11219679,"64,200.00",BRAVOSOLUTION UK LTD,Non-Capital Expenditure Re: IT Projects (Oracle Projects Control Account)
FCO,FCO,09/06/2021,11219196,"64,056.10",Alexander Mann Solutions Limited,Organisation and Change Management Consultancy
FCO,FCO,11/06/2021,11222402,"64,008.84",SIREN ASSOCIATES LTD,Programme Spend (Oracle Projects Control Account)
FCO,FCO,15/06/2021,11225790,"63,996.69",BAE SYSTEMS APPLIED INTELLIGENCE LIMITED,IT Management and Change
FCO,FCO,18/06/2021,11230402,"63,576.96",FCDO SERVICES,IT Support
FCO,FCO,30/06/2021,11245065,"63,300.00",BANNER GROUP LTD,Inward visits to the UK and UK Conferences
FCO,FCO,28/06/2021,11240792,"62,736.34",ONE SANSOME PROPERTY LLC,Multiple Accounts
FCO,FCO,24/06/2021,11237888,"62,564.39",OEGK OESTERR GESUNDHEITSKASSE,Multiple Accounts
FCO,FCO,17/06/2021,11229185,"62,337.16",MERITAIN HEALTH,Multiple Accounts
FCO,FCO,02/06/2021,11209136,"61,763.41",FCDO SERVICES,Construction Project more than 10k
FCO,FCO,23/06/2021,11236432,"61,598.67",ERNST AND YOUNG LLP,Programme Spend (Oracle Projects Control Account)
FCO,FCO,07/06/2021,11214273,"60,851.99",INSTITUTE OF LINGUISTS EDUCATIONAL TRUST,Language Exams (excl Hays)
FCO,FCO,21/06/2021,11233475,"60,731.57",THE BRITISH COUNCIL,Programme Spend (Oracle Projects Control Account)
FCO,FCO,21/06/2021,11233174,"60,000.00",UNITED NATIONS,Programme Spend (Oracle Projects Control Account)
FCO,FCO,14/06/2021,11224478,"59,264.87",HENDO GMBH UND CO KG,Rental Payments - non residential
FCO,FCO,29/06/2021,11243173,"59,264.87",HENDO GMBH UND CO KG,Rental Payments - non residential
FCO,FCO,09/06/2021,11218808,"59,236.94",RESTORE PLC,Specialist Contractors
FCO,FCO,03/06/2021,11210446,"58,646.41",COMPUTACENTER UK LTD,IT Management and Change
FCO,FCO,28/06/2021,11241673,"58,605.89",THE GLOBAL STRATEGY NETWORK,Programme Spend (Oracle Projects Control Account)
FCO,FCO,01/06/2021,11206895,"58,387.45",THE ASIA FOUNDATION,Programme Spend (Oracle Projects Control Account)
FCO,FCO,22/06/2021,11234070,"57,999.57",SOUTH REVENUE SERVICE,Multiple Accounts
FCO,FCO,07/06/2021,11214758,"57,987.70",UNITED NATIONS,Programme Spend (Oracle Projects Control Account)
FCO,FCO,21/06/2021,11233278,"57,931.28",INTERSERVE FM LTD,Multiple Accounts
FCO,FCO,23/06/2021,11236433,"57,353.00",AUSTRALIAN STRATEGIC POLICY INSTITUTE,Programme Spend (Oracle Projects Control Account)
FCO,FCO,01/06/2021,11207894,"57,310.89",CIVICA UK LIMITED,Additions-Assets Under Construction (Oracle PA Control Account)
FCO,FCO,16/06/2021,11227866,"57,297.79",WALSONS SERVICES PVT LTD,Local Guards
FCO,FCO,01/06/2021,11207767,"57,140.66",FCDO POSTS,Funding Overseas Posts
FCO,FCO,30/06/2021,11244853,"57,078.31",FCDO SERVICES,Freight & Customs Clearance Charges
FCO,FCO,21/06/2021,11233137,"56,742.17",SSK,Multiple Accounts
FCO,FCO,09/06/2021,11219114,"56,740.00",MADAD NGO,Programme Spend (Oracle Projects Control Account)
FCO,FCO,24/06/2021,11237916,"56,659.25",TETRA TECH MANAGEMENT SERVICES LIMITED,Additions-Assets Under Construction (Oracle PA Control Account)
FCO,FCO,16/06/2021,11227537,"56,312.83",CENTRE COMPTABLE DES ARMEES,Recharge Suspense Account (Oracle PA Control Account)
FCO,FCO,16/06/2021,11227621,"56,312.83",CENTRE COMPTABLE DES ARMEES,Recharge Suspense Account (Oracle PA Control Account)
FCO,FCO,23/06/2021,11236230,"56,297.04",HEALIX INTERNATIONAL LTD,Hospital/Specialist Treatment
FCO,FCO,01/06/2021,11208040,"55,954.64",BAE SYSTEMS APPLIED INTELLIGENCE LIMITED,IT Management and Change
FCO,FCO,01/06/2021,11207705,"55,885.13",FCDO POSTS,Funding Overseas Posts
FCO,FCO,24/06/2021,11238045,"55,804.44",TETRA TECH MANAGEMENT SERVICES LIMITED,Additions-Assets Under Construction (Oracle PA Control Account)
FCO,FCO,28/06/2021,11241680,"55,407.40",COMPUTACENTER UK LTD,IT Management and Change
FCO,FCO,04/06/2021,11212333,"54,820.13",AETNA,Multiple Accounts
FCO,FCO,08/06/2021,11217613,"54,621.74",SHELL NIG CLOSED PENSION FUND ADMIN,Multiple Accounts
FCO,FCO,08/06/2021,11217614,"54,621.74",SHELL NIG CLOSED PENSION FUND ADMIN,Multiple Accounts
FCO,FCO,15/06/2021,11225785,"54,473.43",BAE SYSTEMS APPLIED INTELLIGENCE LIMITED,IT Management and Change
FCO,FCO,22/06/2021,11234347,"54,252.23",BELASTINGDIENST CENTRALE ADMINISTRATIE TE APELDOORN,Multiple Accounts
FCO,FCO,08/06/2021,11217299,"54,243.60",CAMBRIDGE CLEANTECH LTD,Programme Spend (Oracle Projects Control Account)
FCO,FCO,18/06/2021,11231039,"54,105.41",SCHOOL,Multiple Accounts
FCO,FCO,23/06/2021,11236701,"53,868.95",DAI GLOBAL UK LTD,Programme Spend (Oracle Projects Control Account)
FCO,FCO,18/06/2021,11230881,"53,763.62",AXIOM INTERNATIONAL LTD,Programme Spend (Oracle Projects Control Account)
FCO,FCO,01/06/2021,11207750,"53,708.00",FCDO POSTS,Funding Overseas Posts
FCO,FCO,09/06/2021,11219101,"53,235.00",FOUNDATION HIRONDELLE,Programme Spend (Oracle Projects Control Account)
FCO,FCO,21/06/2021,11233148,"53,155.47",TETRA TECH INTERNATIONAL DEVELOPMENT,Programme Spend (Oracle Projects Control Account)
FCO,FCO,11/06/2021,11222969,"53,080.95",BRIAN JOHNSTON AND CO LTD,Vehicle Insurance
FCO,FCO,21/06/2021,11232998,"52,970.91",BAE SYSTEMS APPLIED INTELLIGENCE LIMITED,IT Management and Change
FCO,FCO,14/06/2021,11224600,"52,750.05",SISTEMA INTEGRADO MULTIPLE DE PAGOS,Multiple Accounts
FCO,FCO,16/06/2021,11227937,"52,691.85",SCHOOL,Recharge Suspense Account (Oracle PA Control Account)
FCO,FCO,28/06/2021,11241793,"52,630.17",COMPUTACENTER UK LTD,IT Support
FCO,FCO,07/06/2021,11214337,"52,618.50",SAYARA INTERNATIONAL,Programme Spend (Oracle Projects Control Account)
FCO,FCO,03/06/2021,11210476,"52,315.87",FCDO POSTS,Funding Overseas Posts
FCO,FCO,18/06/2021,11231091,"52,196.15",FCDO POSTS,Funding Overseas Posts
FCO,FCO,01/06/2021,11207827,"52,145.73",FCDO POSTS,Funding Overseas Posts
FCO,FCO,07/06/2021,11214157,"52,051.79",DAI GLOBAL UK LTD,Programme Spend (Oracle Projects Control Account)
FCO,FCO,17/06/2021,11228984,"51,500.00",CAUTION YOUR BLAST LTD,Additions-Assets Under Construction (Oracle PA Control Account)
FCO,FCO,18/06/2021,11230766,"51,272.26",SECURITAS SAC,Local Guards
FCO,FCO,07/06/2021,11214294,"51,163.52",DFID DEPT INTERNATIONAL DEVELOPMENT,Programme Spend (Oracle Projects Control Account)
FCO,FCO,17/06/2021,11230121,"51,145.71",PACIFIC PRIME INSURANCE BROKERS LIMITED,Multiple Accounts
FCO,FCO,07/06/2021,11214300,"51,121.13",UNITED NATIONS,Programme Spend (Oracle Projects Control Account)
FCO,FCO,03/06/2021,11210124,"50,992.17",STARKFAST LIMITED,Multiple Accounts
FCO,FCO,04/06/2021,11212331,"50,642.90",ICTS ITALIA SRL,Local Guards
FCO,FCO,03/06/2021,11210443,"50,361.72",COMPUTACENTER UK LTD,IT Management and Change
FCO,FCO,01/06/2021,11207532,"50,122.96",FCDO SERVICES,Travel Package
FCO,FCO,03/06/2021,11210467,"50,000.00",UNITED NATIONS,Programme Spend (Oracle Projects Control Account)
FCO,FCO,09/06/2021,11219686,"49,950.00",BELLS POWER SERVICES LTD,Additions-Assets Under Construction (Oracle PA Control Account)
FCO,FCO,28/06/2021,11241810,"49,717.13",THE BRITISH COUNCIL,Programme Spend (Oracle Projects Control Account)
FCO,FCO,16/06/2021,11228128,"49,358.07",BMATT,Recharge Suspense Account (Oracle PA Control Account)
FCO,FCO,01/06/2021,11207648,"49,327.04",FCDO POSTS,Funding Overseas Posts
FCO,FCO,23/06/2021,11236254,"49,198.57",G4S SECURITY SERVICES KENYA LTD,Multiple Accounts
FCO,FCO,03/06/2021,11210338,"49,142.00",UNDP CONTRIBUTIONS,Programme Spend (Oracle Projects Control Account)
FCO,FCO,07/06/2021,11214042,"49,110.83",UAA CASBOX TOPUP,Inter Account Transfer (Cash in Transit)
FCO,FCO,11/06/2021,11222412,"49,011.51",IOM INTERNATIONAL ORG FOR MIGRATION,Programme Spend (Oracle Projects Control Account)
FCO,FCO,07/06/2021,11214304,"48,918.43",MERITAIN HEALTH,Multiple Accounts
FCO,FCO,21/06/2021,11233296,"48,912.72",INTERSERVE FM LTD,Construction Project more than 10k
FCO,FCO,29/06/2021,11243191,"48,875.67",INSTITUTE FOR WAR AND PEACE REPORTING IWPR,Programme Spend (Oracle Projects Control Account)
FCO,FCO,03/06/2021,11227479,"48,817.89",THE ROYAL BANK OF SCOTLAND,Travel Package Advance Overseas Posting (Credit Card Payments Only)
FCO,FCO,11/06/2021,11222988,"48,636.72",IOM INTERNATIONAL ORG FOR MIGRATION,Programme Spend (Oracle Projects Control Account)
FCO,FCO,14/06/2021,11224401,"48,104.98",ISS FACILITY SERVICES LTD FCO OP,Multiple Accounts
FCO,FCO,24/06/2021,11237727,"48,027.13",CONTRIBUTORY PROVIDENT FUND,Multiple Accounts
FCO,FCO,04/06/2021,11212047,"48,025.00",CAUTION YOUR BLAST LTD,Additions-Assets Under Construction (Oracle PA Control Account)
FCO,FCO,01/06/2021,11207668,"47,917.69",FCDO POSTS,Funding Overseas Posts
FCO,FCO,08/06/2021,11217403,"47,755.33",SOLIDARITY FUND POLAND,Programme Spend (Oracle Projects Control Account)
FCO,FCO,10/06/2021,11220983,"47,698.02",ARK GROUP DMCC,Programme Spend (Oracle Projects Control Account)
FCO,FCO,17/06/2021,11229168,"47,601.40",AETNA,Multiple Accounts
FCO,FCO,08/06/2021,11217665,"47,516.74",SHELL NIG CLOSED PENSION FUND ADMIN,Multiple Accounts
FCO,FCO,04/06/2021,11211652,"47,297.30",GOVERNMENT LEGAL DEPARTMENT,Legal Consultancy
FCO,FCO,30/06/2021,11244803,"47,214.34",NETHERLANDS MINISTRY OF FOREIGN AFFAIRS,Rental Payments - residential
FCO,FCO,16/06/2021,11227783,"47,012.66",ARK GROUP DMCC,Programme Spend (Oracle Projects Control Account)
FCO,FCO,01/06/2021,11207567,"47,000.00",FCDO SERVICES,Additions-Assets Under Construction (Oracle PA Control Account)
FCO,FCO,10/06/2021,11220816,"46,871.55",DX NETWORK SERVICES,Postal Services
FCO,FCO,03/06/2021,11211269,"46,857.54",MERCATOR INSTITUTE FOR CHINA STUDIES (MERICS),Programme Spend (Oracle Projects Control Account)
FCO,FCO,08/06/2021,11217661,"46,719.75",SHELL NIG CLOSED PENSION FUND ADMIN,Multiple Accounts
FCO,FCO,22/06/2021,11234691,"46,719.75",SHELL NIG CLOSED PENSION FUND ADMIN,Multiple Accounts
FCO,FCO,08/06/2021,11217276,"46,435.12",INSTITUTE FOR WAR AND PEACE REPORTING IWPR,Programme Spend (Oracle Projects Control Account)
FCO,FCO,23/06/2021,11236462,"46,301.67",TETRA TECH INTERNATIONAL DEVELOPMENT BV,Programme Spend (Oracle Projects Control Account)
FCO,FCO,24/06/2021,11238054,"46,196.37",SECURE CONSTRUCT LTD,Additions-Assets Under Construction (Oracle PA Control Account)
FCO,FCO,02/06/2021,11209015,"46,075.00",FLYFORM LTD,IT Management and Change
FCO,FCO,10/06/2021,11220792,"46,047.84",ADAM SMITH INTERNATIONAL,Programme Spend (Oracle Projects Control Account)
FCO,FCO,01/06/2021,11077927,"46,029.50",HOME OFFICE,Programme Spend (Oracle Projects Control Account)
FCO,FCO,28/06/2021,11240688,"45,916.00",SOCIAL SECURITY CONTRIBTN AUTHORITY,Multiple Accounts
FCO,FCO,23/06/2021,11236459,"45,888.15",JONES LANG LASALLE,Multiple Accounts
FCO,FCO,01/06/2021,11207716,"45,567.88",FCDO POSTS,Funding Overseas Posts
FCO,FCO,02/06/2021,11209012,"45,561.80",ATKINS LTD,Repairs And Refurbishment: Works Residential
FCO,FCO,10/06/2021,11221177,"45,491.13",UCL CONSULTANTS LIMITED,Programme Spend (Oracle Projects Control Account)
FCO,FCO,09/06/2021,11219041,"45,192.81",ORACLE CORPORATION (UK) LTD,IT Hosting
FCO,FCO,04/06/2021,11211416,"44,839.64",NATIONAL INSTITUTE OF LEGAL AID CHINA UNIVERSITY OF POLITICAL SCIENCE AND LAW,Programme Spend (Oracle Projects Control Account)
FCO,FCO,03/06/2021,11210637,"44,601.51",BAE SYSTEMS APPLIED INTELLIGENCE LIMITED,IT Management and Change
FCO,FCO,28/06/2021,11241037,"44,459.40",ZINC NETWORK LIMITED,Programme Spend (Oracle Projects Control Account)
FCO,FCO,24/06/2021,11237943,"44,436.72",COMPUTACENTER UK LTD,Additions-Assets Under Construction (Oracle PA Control Account)
FCO,FCO,09/06/2021,11219301,"44,397.42",FCDO SERVICES,Additions-Assets Under Construction (Oracle PA Control Account)
FCO,FCO,28/06/2021,11240414,"44,366.01",PILGRIMS AFRICA LTD,Local Guards
FCO,FCO,23/06/2021,11236188,"44,360.00",MOD MINISTRY OF DEFENCE,Programme Spend (Oracle Projects Control Account)
FCO,FCO,01/06/2021,11207643,"44,231.56",FCDO POSTS,Funding Overseas Posts
FCO,FCO,23/06/2021,11236427,"44,092.00",ERNST AND YOUNG LLP,Programme Spend (Oracle Projects Control Account)
FCO,FCO,22/06/2021,11234566,"44,015.96",G4S SECURE SOLUTIONS,Local Guards
FCO,FCO,22/06/2021,11234067,"43,866.46",DISCOVERY MEDICAL AID,Multiple Accounts
FCO,FCO,29/06/2021,11242889,"43,665.42",DIPSERVICE,Rental Payments - non residential
FCO,FCO,28/06/2021,11241036,"43,630.63",IIZUKA,IT Hosting
FCO,FCO,28/06/2021,11240768,"43,434.94",FCDO SERVICES,Repairs And Refurbishment: Works Residential
FCO,FCO,16/06/2021,11227734,"43,339.14",RANGER PROTECTION AND SECURITY COMPANY LTD,Local Guards
FCO,FCO,21/06/2021,11233507,"43,339.14",RANGER PROTECTION AND SECURITY COMPANY LTD,Local Guards
FCO,FCO,01/06/2021,11207710,"42,988.57",FCDO POSTS,Funding Overseas Posts
FCO,FCO,08/06/2021,11216377,"42,933.07",FCDO SERVICES,Customer Refund Account
FCO,FCO,01/06/2021,11207748,"42,754.73",FCDO POSTS,Funding Overseas Posts
FCO,FCO,10/06/2021,11221225,"42,747.83",FCDO POSTS,Funding Overseas Posts
FCO,FCO,16/06/2021,11227430,"42,738.93",SCHOOL,Schooling for Children at Post
FCO,FCO,28/06/2021,11241487,"42,738.37",TRESOR PUBLIC,Multiple Accounts
FCO,FCO,16/06/2021,11227526,"42,656.59",HARIS ENTERPRISES PVT LTD,Local Guards
FCO,FCO,09/06/2021,11219059,"42,408.30",ORACLE CORPORATION (UK) LTD,IT Hosting
FCO,FCO,03/06/2021,11210805,"42,374.75",BERL KATZNELSON CENTER,Programme Spend (Oracle Projects Control Account)
FCO,FCO,15/06/2021,11225835,"42,367.36",CONTROLLED BUILDING MEASURES LIMITED,Additions-Assets Under Construction (Oracle PA Control Account)
FCO,FCO,28/06/2021,11240998,"42,294.00",WESTMINSTER CITY COUNCIL,Rates Taxes Non-Residential
FCO,FCO,01/06/2021,11207655,"42,280.32",FCDO POSTS,Funding Overseas Posts
FCO,FCO,22/06/2021,11234753,"42,077.33",PILGRIMS AFRICA LTD,Local Guards
FCO,FCO,11/06/2021,11222761,"42,066.70",TAKAFUL INSURANCE COMPANY,LS Staff Medical Costs
FCO,FCO,11/06/2021,11222554,"42,053.52",JLL PROPERTY CONSULTANTS PTE LTD POE,FMCU POE Trust Account Debtor
FCO,FCO,21/06/2021,11233412,"42,037.67",INTERSERVE FM LTD,Multiple Accounts
FCO,FCO,22/06/2021,11234065,"41,905.34",ALEXANDER FORBES LIFE,Multiple Accounts
FCO,FCO,11/06/2021,11223039,"41,725.50",BAE SYSTEMS APPLIED INTELLIGENCE LIMITED,IT Management and Change
FCO,FCO,21/06/2021,11233006,"41,717.04",FCDO SERVICES,End User Software and Hardware
FCO,FCO,30/06/2021,11244902,"41,569.45",FCDO SERVICES,Construction Project more than 10k
FCO,FCO,22/06/2021,11234552,"41,388.04",G4S SECURE SOLUTIONS,Local Guards
FCO,FCO,24/06/2021,11238091,"41,293.38",ACCOMMODATION PROVIDER,Multiple Accounts
FCO,FCO,28/06/2021,11240767,"41,220.43",AFIP,Multiple Accounts
FCO,FCO,24/06/2021,11237803,"40,790.61",CAISSE CANTONALE GENEVOISE COMPEN,Multiple Accounts
FCO,FCO,29/06/2021,11243311,"40,613.57",PRICEWATERHOUSECOOPERS LLP,Programme Spend (Oracle Projects Control Account)
FCO,FCO,24/06/2021,11238206,"40,595.48",BENNETT CONSTRUCTION COMPANY LTD,Programme Spend (Oracle Projects Control Account)
FCO,FCO,07/06/2021,11214136,"40,557.65",FCDO SERVICES,IT Management and Change
FCO,FCO,10/06/2021,11221041,"40,479.00",COMPUTACENTER UK LTD,IT Management and Change
FCO,FCO,24/06/2021,11237882,"40,415.00",DART CENTRE EUROPE LTD,Programme Spend (Oracle Projects Control Account)
FCO,FCO,28/06/2021,11241939,"40,370.30",ERNST AND YOUNG LLP,Programme Spend (Oracle Projects Control Account)
FCO,FCO,28/06/2021,11241938,"40,370.29",ERNST AND YOUNG LLP,Programme Spend (Oracle Projects Control Account)
FCO,FCO,28/06/2021,11241940,"40,370.29",ERNST AND YOUNG LLP,Programme Spend (Oracle Projects Control Account)
FCO,FCO,30/06/2021,11244669,"40,328.43",AL HABTOOR GROUP LLC OASIS 74,Multiple Accounts
FCO,FCO,28/06/2021,11241158,"40,141.75",TMT CONSTRUCTION LTD,Additions-Assets Under Construction (Oracle PA Control Account)
FCO,FCO,17/06/2021,11229120,"40,082.66",TEAM 3 LIMITED,Local Guards
FCO,FCO,24/06/2021,11237923,"39,767.47",VODAFONE LTD CABLE AND WIRELESS UK,IT Networking
FCO,FCO,09/06/2021,11219117,"39,563.00",FOUNDATION HIRONDELLE,Programme Spend (Oracle Projects Control Account)
FCO,FCO,28/06/2021,11240779,"39,498.38",PALLADIUM,Programme Spend (Oracle Projects Control Account)
FCO,FCO,21/06/2021,11233123,"39,456.47",TETRA TECH INTERNATIONAL DEVELOPMENT,Programme Spend (Oracle Projects Control Account)
FCO,FCO,21/06/2021,11233129,"39,456.47",TETRA TECH INTERNATIONAL DEVELOPMENT,Programme Spend (Oracle Projects Control Account)
FCO,FCO,17/06/2021,11229312,"39,424.82",CARDIFF UNIVERSITY,Programme Spend (Oracle Projects Control Account)
FCO,FCO,30/06/2021,11244892,"39,109.75",FCDO SERVICES,Construction Project more than 10k
FCO,FCO,01/06/2021,11207709,"38,689.71",FCDO POSTS,Funding Overseas Posts
FCO,FCO,30/06/2021,11244820,"38,681.50",FCDO SERVICES,IT Support
FCO,FCO,17/06/2021,11228829,"38,421.08",G4S SECURITY SERVICES KENYA LTD,UK Guarding Contracts Overseas
FCO,FCO,03/06/2021,11211273,"38,370.00",MEDIA ENTERTAINMENT AND ARTS ALLIANCE,Programme Spend (Oracle Projects Control Account)
FCO,FCO,15/06/2021,11225815,"38,360.86",G4S SECURITY SERVICES UGANDA LTD,Local Guards
FCO,FCO,21/06/2021,11233154,"38,351.61",SSK,Multiple Accounts
FCO,FCO,29/06/2021,11243213,"38,321.88",ECORYS UK LTD,Programme Spend (Oracle Projects Control Account)
FCO,FCO,10/06/2021,11220719,"38,241.68",MACE CONSULT LIMITED,Additions-Assets Under Construction (Oracle PA Control Account)
FCO,FCO,10/06/2021,11220805,"38,156.18",NITEROI ADMINISTRACAO,Multiple Accounts
FCO,FCO,17/06/2021,11229140,"38,115.64",ACCOMMODATION PROVIDER,Multiple Accounts
FCO,FCO,22/06/2021,11234180,"37,950.00",DELOITTE AND TOUCHE LLP,Organisation and Change Management Consultancy
FCO,FCO,08/06/2021,11229299,"37,938.00",THE ROYAL BANK OF SCOTLAND,GPC Clearing Account
FCO,FCO,04/06/2021,11211772,"37,906.00",INSTITUT FRANCAIS,Language Tuition: Essential
FCO,FCO,11/06/2021,11223027,"37,835.20",RIDGE AND PARTNERS LLP,Additions-Assets Under Construction (Oracle PA Control Account)
FCO,FCO,22/06/2021,11234765,"37,823.58",SHELL NIG CLOSED PENSION FUND ADMIN,Multiple Accounts
FCO,FCO,17/06/2021,11228957,"37,721.40",PICKFORDS MOVE MANAGEMENT LTD,Heavy Baggage
FCO,FCO,22/06/2021,11234771,"37,400.47",SHELL NIG CLOSED PENSION FUND ADMIN,Multiple Accounts
FCO,FCO,14/06/2021,11224379,"37,336.53",BAE SYSTEMS APPLIED INTELLIGENCE LIMITED,IT Management and Change
FCO,FCO,03/06/2021,11210678,"37,089.07",JLL PROPERTY CONSULTANTS PTE LTD,Multiple Accounts
FCO,FCO,22/06/2021,11234806,"37,049.67",INTERSERVE FM LTD,Additions-Assets Under Construction (Oracle PA Control Account)
FCO,FCO,04/06/2021,11211397,"36,971.97",G4S SECURE SOLUTIONS INT JORDAN,Local Guards
FCO,FCO,18/06/2021,11230550,"36,945.32",PALLADIUM,Programme Spend (Oracle Projects Control Account)
FCO,FCO,29/06/2021,11243310,"36,686.00",TETRA TECH INTERNATIONAL DEVELOPMENT,Programme Spend (Oracle Projects Control Account)
FCO,FCO,28/06/2021,11241687,"36,510.00",LIONS HEAD GLOBAL PARTNERS18 LTD,Programme Spend (Oracle Projects Control Account)
FCO,FCO,11/06/2021,11222974,"36,453.98",BRIAN JOHNSTON AND CO LTD,Vehicle Insurance
FCO,FCO,22/06/2021,11234088,"36,156.16",CENTRAL PROVIDENT FUND BOARD,Multiple Accounts
FCO,FCO,09/06/2021,11218775,"36,091.00",SYNERGY FOR JUSTICE LTD,Programme Spend (Oracle Projects Control Account)
FCO,FCO,23/06/2021,11236307,"36,012.00",TETRA TECH MANAGEMENT SERVICES LIMITED,Unscheduled repairs to building infrastructure
FCO,FCO,15/06/2021,11225704,"35,990.71",QATAR CORAL FOR REAL ESTATE DEVELOPMENT LLC,Rental Payments - residential
FCO,FCO,21/06/2021,11233383,"35,627.31",INTERSERVE FM LTD,Construction Project more than 10k
FCO,FCO,29/06/2021,11243104,"35,515.47",BAA PROPERTIES LIMITED,Rental Payments - residential
FCO,FCO,23/06/2021,11236270,"35,348.32",FCDO SERVICES,IT Support
FCO,FCO,23/06/2021,11236431,"35,244.61",MINISTERIO DAS FINANCAS AT,Multiple Accounts
FCO,FCO,01/06/2021,11207642,"35,233.60",FCDO POSTS,Funding Overseas Posts
FCO,FCO,17/06/2021,11229130,"35,233.60",ISRAEL MOD,Recharge Suspense Account (Oracle PA Control Account)
FCO,FCO,21/06/2021,11233381,"34,973.76",INTERSERVE FM LTD,FM Interserve Estate Management Services
FCO,FCO,09/06/2021,11219691,"34,838.49",HENRY DUNANT CENTRE FOR HUMANITARIAN DIALOGUE,Programme Spend (Oracle Projects Control Account)
FCO,FCO,01/06/2021,11207644,"34,528.93",FCDO POSTS,Funding Overseas Posts
FCO,FCO,08/06/2021,11217191,"34,506.92",SCHOOL,Multiple Accounts
FCO,FCO,08/06/2021,11217199,"34,506.92",SCHOOL,Multiple Accounts
FCO,FCO,08/06/2021,11217204,"34,506.92",SCHOOL,Multiple Accounts
FCO,FCO,08/06/2021,11217414,"34,506.92",SCHOOL,Multiple Accounts
FCO,FCO,08/06/2021,11217418,"34,506.92",SCHOOL,Multiple Accounts
FCO,FCO,15/06/2021,11226192,"34,419.96",KPMG FIDUCIAIRE,Multiple Accounts
FCO,FCO,01/06/2021,11207707,"34,390.85",FCDO POSTS,Funding Overseas Posts
FCO,FCO,10/06/2021,11221430,"34,304.87",SCHOOL,Schooling for Children at Post
FCO,FCO,22/06/2021,11234819,"34,218.87",THE ROYAL BANK OF SCOTLAND,Children's Concessionary Journeys
FCO,FCO,11/06/2021,11222474,"34,205.81",THE UNIQHOUSE,Construction Project more than 10k
FCO,FCO,22/06/2021,11234341,"34,087.03",IESCO,Multiple Accounts
FCO,FCO,14/06/2021,11224830,"34,030.37",AETNA,Multiple Accounts
FCO,FCO,18/06/2021,11231011,"33,939.00",MAZEPOINT LTD,IT Hosting
FCO,FCO,28/06/2021,11241512,"33,939.00",MAZEPOINT LTD,IT Hosting
FCO,FCO,03/06/2021,11210276,"33,824.25",ACCOMMODATION PROVIDER,Rental Payments - residential
FCO,FCO,22/06/2021,11234517,"33,824.25",AMUGOLI GENERAL ENTERPRISES LTD,Rental Payments - residential
FCO,FCO,30/06/2021,11244872,"33,702.55",FCDO SERVICES,Additions-Assets Under Construction (Oracle PA Control Account)
FCO,FCO,08/06/2021,11217176,"33,690.14",SCHOOL,Multiple Accounts
FCO,FCO,08/06/2021,11217398,"33,690.14",SCHOOL,Multiple Accounts
FCO,FCO,08/06/2021,11217409,"33,690.14",SCHOOL,Multiple Accounts
FCO,FCO,08/06/2021,11217512,"33,690.14",SCHOOL,Multiple Accounts
FCO,FCO,08/06/2021,11217556,"33,690.14",SCHOOL,Multiple Accounts
FCO,FCO,08/06/2021,11217591,"33,690.14",SCHOOL,Multiple Accounts
FCO,FCO,08/06/2021,11217593,"33,690.14",SCHOOL,Multiple Accounts
FCO,FCO,24/06/2021,11237771,"33,669.83",FCDO SERVICES,IT/IS Consultancy
FCO,FCO,22/06/2021,11234798,"33,535.17",BMATT,Recharge Suspense Account (Oracle PA Control Account)
FCO,FCO,01/06/2021,11208038,"33,375.13",PLANON LTD,IT Management and Change
FCO,FCO,07/06/2021,11214204,"33,260.52",G4S SECURITY SERVICE DRC SPRL,Local Guards
FCO,FCO,07/06/2021,11214214,"33,260.52",G4S SECURITY SERVICE DRC SPRL,Local Guards
FCO,FCO,22/06/2021,11234350,"33,008.61",IESCO,Multiple Accounts
FCO,FCO,02/06/2021,11209264,"32,934.39",FCDO SERVICES,Additions-Assets Under Construction (Oracle PA Control Account)
FCO,FCO,03/06/2021,11210667,"32,641.11",GRIFO DE PLATA SA,Rental Payments - non residential
FCO,FCO,22/06/2021,11234677,"32,545.32",MERITAIN HEALTH,Multiple Accounts
FCO,FCO,02/06/2021,11209091,"32,417.30",MITEL NETWORKS LTD,Additions-Assets Under Construction (Oracle PA Control Account)
FCO,FCO,28/06/2021,11241137,"32,416.53",SCHOOL,Schooling for Children at Post
FCO,FCO,02/06/2021,11208970,"32,370.34",ACCL INTERNATIONAL KABUL,Fuel Oil Residential
FCO,FCO,02/06/2021,11209424,"32,344.60",ALZAD ALLIBI FOR CATERING SERVICES,Estates Management Services
FCO,FCO,02/06/2021,11208805,"32,326.82",PILGRIMS AFRICA LTD,Local Guards
FCO,FCO,17/06/2021,11229306,"32,326.82",PILGRIMS AFRICA LTD,Local Guards
FCO,FCO,24/06/2021,11237941,"32,321.01",PICKFORDS MOVE MANAGEMENT LTD,Heavy Baggage
FCO,FCO,08/06/2021,11216935,"32,246.96",THECITYUK,Programme Spend (Oracle Projects Control Account)
FCO,FCO,11/06/2021,11222545,"32,211.10",UCL CONSULTANTS LIMITED,Specialist Training (Devolved)
FCO,FCO,22/06/2021,11234481,"32,133.04",VISA INVESTMENTS LIMITED,Rental Payments - residential
FCO,FCO,01/06/2021,11208046,"32,031.25",TODD RESEARCH LTD,Other Machinery and Equipment
FCO,FCO,29/06/2021,11243372,"32,031.25",TODD RESEARCH LTD,Other Machinery and Equipment
FCO,FCO,08/06/2021,11217186,"32,013.58",SCHOOL,Multiple Accounts
FCO,FCO,08/06/2021,11217243,"32,013.58",SCHOOL,Multiple Accounts
FCO,FCO,08/06/2021,11217258,"32,013.58",SCHOOL,Multiple Accounts
FCO,FCO,28/06/2021,11241611,"32,013.58",SCHOOL,Multiple Accounts
FCO,FCO,28/06/2021,11241698,"31,957.00",CAMBRIDGE INFORMATION LIMITED,Online Content
FCO,FCO,01/06/2021,11207623,"31,937.14",BVI INTERNATIONAL ARBITRATION CENTRE,Programme Spend (Oracle Projects Control Account)
FCO,FCO,03/06/2021,11210277,"31,892.64",SCHOOL,Schooling for Children at Post
FCO,FCO,01/06/2021,11205566,"31,817.65",O2 (UK) LIMITED,Multiple Accounts
FCO,FCO,24/06/2021,11237725,"31,755.03",CONTRIBUTORY PROVIDENT FUND,Recharge Suspense Account (Oracle PA Control Account)
FCO,FCO,02/06/2021,11209212,"31,712.50",PRICEWATERHOUSECOOPERS LLP,Programme Spend (Oracle Projects Control Account)
FCO,FCO,22/06/2021,11234487,"31,710.24",ACCOMMODATION PROVIDER,Rental Payments - residential
FCO,FCO,01/06/2021,11207891,"31,663.75",MAYORS OFFICE FOR POLICING AND CRIME MOPC,Programme Spend (Oracle Projects Control Account)
FCO,FCO,10/06/2021,11220813,"31,619.10",DX NETWORK SERVICES,Postal Services
FCO,FCO,11/06/2021,11223046,"31,597.12",BAE SYSTEMS APPLIED INTELLIGENCE LIMITED,IT/IS Consultancy
FCO,FCO,15/06/2021,11226303,"31,472.79",KPMG FIDUCIAIRE,Multiple Accounts
FCO,FCO,21/06/2021,11233287,"31,287.14",INTERSERVE FM LTD,Multiple Accounts
FCO,FCO,08/06/2021,11217182,"31,196.80",SCHOOL,Multiple Accounts
FCO,FCO,08/06/2021,11217394,"31,196.80",SCHOOL,Multiple Accounts
FCO,FCO,11/06/2021,11222707,"31,196.80",SCHOOL,Multiple Accounts
FCO,FCO,28/06/2021,11240862,"31,152.00",BELLS POWER SERVICES LTD,Property Maintenance Overseas Non Residential
FCO,FCO,28/06/2021,11240353,"30,992.77",ALDAR PROPERTIES PJSC,Rental Payments - residential
FCO,FCO,10/06/2021,11220797,"30,930.00",BILAL RAWAT,Programme Spend (Oracle Projects Control Account)
FCO,FCO,09/06/2021,11219674,"30,915.06",SIR GARY HICKINBOTTOM,Programme Spend (Oracle Projects Control Account)
FCO,FCO,16/06/2021,11227704,"30,805.00",TETRA TECH INTERNATIONAL DEVELOPMENT,Programme Spend (Oracle Projects Control Account)
FCO,FCO,15/06/2021,11225950,"30,741.49",KAINOS SOFTWARE LTD,Additions-Assets Under Construction (Oracle PA Control Account)
FCO,FCO,10/06/2021,11220727,"30,694.27",ACCOMMODATION PROVIDER,Rental Payments - residential
FCO,FCO,21/06/2021,11234008,"30,694.26",ACCOMMODATION PROVIDER,Rental Payments - residential
FCO,FCO,14/06/2021,11224599,"30,653.23",SCHOOL,Schooling for Children at Post
FCO,FCO,29/06/2021,11243294,"30,650.22",SCHOOL,Schooling for Children at Post
FCO,FCO,08/06/2021,11216436,"30,536.71",GOVERNMENT PROPERTY AGENCY,Customer Refund Account
FCO,FCO,15/06/2021,11225947,"30,500.00",KAINOS SOFTWARE LTD,IT Hosting
FCO,FCO,28/06/2021,11240828,"30,285.57",BAE SYSTEMS APPLIED INTELLIGENCE LIMITED,IT Management and Change
FCO,FCO,21/06/2021,11232995,"30,172.51",BAE SYSTEMS APPLIED INTELLIGENCE LIMITED,IT Management and Change
FCO,FCO,23/06/2021,11236167,"30,112.76",SCHOOL,Schooling for Children at Post
FCO,FCO,09/06/2021,11218630,"30,104.01",TBG SUPPORT SERVICES,Property Maintenance Overseas Non Residential
FCO,FCO,02/06/2021,11209314,"30,061.88",ATALIAN SERVEST,Misc Security Payments
FCO,FCO,02/06/2021,11209391,"30,046.86",ALZAD ALLIBI FOR CATERING SERVICES,Estates Management Services
FCO,FCO,18/06/2021,11230791,"30,008.15",PC STORE,Programme Spend (Oracle Projects Control Account)
FCO,FCO,01/06/2021,11207769,"30,000.00",FCDO POSTS,Funding Overseas Posts
FCO,FCO,03/06/2021,11210609,"30,000.00",OVE ARUP & PARTNERS LTD,Inward visits to the UK and UK Conferences
FCO,FCO,08/06/2021,11217334,"29,955.39",EDF ENERGY,Electricity Non-Residential
FCO,FCO,11/06/2021,11222977,"29,851.95",BRIAN JOHNSTON AND CO LTD,Vehicle Insurance
FCO,FCO,14/06/2021,11224351,"29,821.25",TETRA TECH INTERNATIONAL DEVELOPMENT,Programme Spend (Oracle Projects Control Account)
FCO,FCO,18/06/2021,11230246,"29,751.92",UNITED INTERNATIONAL TECHNOLOGIES (PVT) LIMITED,Programme Spend (Oracle Projects Control Account)
FCO,FCO,30/06/2021,11244816,"29,691.31",FCDO SERVICES,Travel Package
FCO,FCO,14/06/2021,11224247,"29,676.16",COMPUTACENTER UK LTD,Additions-Assets Under Construction (Oracle PA Control Account)
FCO,FCO,10/06/2021,11220989,"29,675.83",AXIOM INTERNATIONAL LTD,Programme Spend (Oracle Projects Control Account)
FCO,FCO,01/06/2021,11207759,"29,613.48",FCDO POSTS,Funding Overseas Posts
FCO,FCO,14/06/2021,11224274,"29,584.20",TODD RESEARCH LTD,Additions-Assets Under Construction (Oracle PA Control Account)
FCO,FCO,18/06/2021,11230555,"29,574.66",MINISTRY OF JUSTICE,Programme Spend (Oracle Projects Control Account)
FCO,FCO,07/06/2021,11214830,"29,501.00",TORCHLIGHT SOLUTIONS LTD,Programme Spend (Oracle Projects Control Account)
FCO,FCO,23/06/2021,11236275,"29,488.41",FCDO SERVICES,IT Hosting
FCO,FCO,10/06/2021,11221406,"29,478.69",SOCIETE JOLE 11,Multiple Accounts
FCO,FCO,07/06/2021,11214334,"29,459.45",SAYARA INTERNATIONAL,Programme Spend (Oracle Projects Control Account)
FCO,FCO,03/06/2021,11210690,"29,255.36",JLL PROPERTY CONSULTANTS PTE LTD,Multiple Accounts
FCO,FCO,15/06/2021,11226304,"29,194.93",SECURITAS SAC,Local Guards
FCO,FCO,10/06/2021,11221283,"29,127.66",SPRL M VANDENDRIESSCHE,Additions-Assets Under Construction (Oracle PA Control Account)
FCO,FCO,11/06/2021,11222350,"29,120.79",ACCOMMODATION PROVIDER,Multiple Accounts
FCO,FCO,13/06/2021,11223856,"29,098.07",ACCOMMODATION PROVIDER,Rental Payments - non residential
FCO,FCO,28/06/2021,11240690,"29,059.12",RED SNAPPER GROUP,Programme Spend (Oracle Projects Control Account)
FCO,FCO,17/06/2021,11229100,"29,056.78",ILMARINEN,Multiple Accounts
FCO,FCO,28/06/2021,11241094,"29,018.88",ATALIAN SERVEST,Misc Security Payments
FCO,FCO,03/06/2021,11210695,"29,000.49",JLL PROPERTY CONSULTANTS PTE LTD,Multiple Accounts
FCO,FCO,02/06/2021,11209018,"28,895.00",FLYFORM LTD,IT Management and Change
FCO,FCO,22/06/2021,11234796,"28,878.57",IBTC PENSION MANAGERS LTD,Multiple Accounts
FCO,FCO,29/06/2021,11242988,"28,811.73",SOCIAL SECURITY CORPORATION,Multiple Accounts
FCO,FCO,08/06/2021,11217274,"28,776.55",SCHOOL,Multiple Accounts
FCO,FCO,08/06/2021,11217285,"28,776.55",SCHOOL,Multiple Accounts
FCO,FCO,08/06/2021,11217386,"28,776.55",SCHOOL,Multiple Accounts
FCO,FCO,08/06/2021,11217391,"28,776.55",SCHOOL,Multiple Accounts
FCO,FCO,08/06/2021,11217492,"28,776.55",SCHOOL,Multiple Accounts
FCO,FCO,08/06/2021,11217535,"28,776.55",SCHOOL,Multiple Accounts
FCO,FCO,08/06/2021,11217538,"28,776.55",SCHOOL,Multiple Accounts
FCO,FCO,08/06/2021,11217549,"28,776.55",SCHOOL,Multiple Accounts
FCO,FCO,08/06/2021,11217553,"28,776.55",SCHOOL,Multiple Accounts
FCO,FCO,30/06/2021,11244794,"28,684.30",IDENTITY INTEGRATED EVENTS PARTNER,Inward visits to the UK and UK Conferences
FCO,FCO,09/06/2021,11219685,"28,607.92",GOVERNMENT OF ANGUILLA,Programme Spend (Oracle Projects Control Account)
FCO,FCO,17/06/2021,11229018,"28,483.09",PROFESSIONAL LANGUAGE SOLUTIONS,Language Tuition: Essential
FCO,FCO,02/06/2021,11209109,"28,468.19",MITEL NETWORKS LTD,IT Networking
FCO,FCO,30/06/2021,11245037,"28,468.19",MITEL NETWORKS LTD,IT Networking
FCO,FCO,01/06/2021,11205217,"28,456.09",FCDO SERVICES,Additions-Assets Under Construction (Oracle PA Control Account)
FCO,FCO,23/06/2021,11236846,"28,426.90",UNIVERSITY OF CAMBRIDGE,Programme Spend (Oracle Projects Control Account)
FCO,FCO,03/06/2021,11210437,"28,372.45",SCHOOL,Schooling for Children at Post
FCO,FCO,28/06/2021,11240887,"28,340.85",EU DISINFO LAB,Programme Spend (Oracle Projects Control Account)
FCO,FCO,01/06/2021,11206922,"28,275.87",SOCIAL SECURITY CORPORATION,Multiple Accounts
FCO,FCO,11/06/2021,11222986,"28,247.16",IOM INTERNATIONAL ORG FOR MIGRATION,Programme Spend (Oracle Projects Control Account)
FCO,FCO,28/06/2021,11240231,"28,244.29",LOUIZ GREEN,Representation of the FCO
FCO,FCO,11/06/2021,11222565,"28,186.88",FCDO POSTS,Funding Overseas Posts
FCO,FCO,14/06/2021,11224318,"28,162.68",HOTELLINE FOR TOURISTIC INVESTMENT LTD,Catering Services
FCO,FCO,24/06/2021,11237935,"28,162.12",THE TERRENCE HIGGINS TRUST,Programme Spend (Oracle Projects Control Account)
FCO,FCO,10/06/2021,11220798,"28,145.87",FCDO SERVICES,Security: Works Non-Residential
FCO,FCO,02/06/2021,11208793,"28,121.08",SAUDI REAL ESTATE COMPANY,Multiple Accounts
FCO,FCO,17/06/2021,11229563,"28,114.52",RAAPPS,Rental Payments - residential
FCO,FCO,17/06/2021,11228951,"28,093.77",PICKFORDS MOVE MANAGEMENT LTD,Heavy Baggage
FCO,FCO,23/06/2021,11236285,"28,038.35",ACCOUNTING SOLUTIONS,Multiple Accounts
FCO,FCO,24/06/2021,11237728,"27,905.01",ACCOMMODATION PROVIDER,Rental Payments - residential
FCO,FCO,10/06/2021,11220699,"27,882.75",UNFPA,Programme Spend (Oracle Projects Control Account)
FCO,FCO,02/06/2021,11209376,"27,826.39",AVARN SECURITY OY,Local Guards
FCO,FCO,02/06/2021,11209345,"27,804.03",SECURITAS SAC,Local Guards
FCO,FCO,03/06/2021,11211296,"27,785.83",SAFEGUARD ALARMS PVT LTD,Local Guards
FCO,FCO,09/06/2021,11219277,"27,785.46",G4S SECURITY SERVICES,Local Guards
FCO,FCO,22/06/2021,11234898,"27,717.40",SAFEGUARD ALARMS PVT LTD,Local Guards
FCO,FCO,17/06/2021,11228827,"27,710.00",SATELLITE APPLICATIONS CATAPULT LTD,Programme Spend (Oracle Projects Control Account)
FCO,FCO,30/06/2021,11245073,"27,670.09",DOMASCO,Additions-Assets Under Construction (Oracle PA Control Account)
FCO,FCO,16/06/2021,11227677,"27,619.71",LIMELINE SIERRA LEONE LIMITED,IT Networking
FCO,FCO,08/06/2021,11217265,"27,512.68",SCHOOL,Multiple Accounts
FCO,FCO,15/06/2021,11225763,"27,494.99",SODRA,Multiple Accounts
FCO,FCO,22/06/2021,11234735,"27,320.95",SCHOOL,Schooling for Children at Post
FCO,FCO,03/06/2021,11210689,"27,264.39",JLL PROPERTY CONSULTANTS PTE LTD,Multiple Accounts
FCO,FCO,21/06/2021,11233264,"27,258.87",INTERSERVE FM LTD,Multiple Accounts
FCO,FCO,21/06/2021,11233276,"27,163.00",INTERSERVE FM LTD,Multiple Accounts
FCO,FCO,15/06/2021,11226269,"27,017.37",SECRETARY NDMC NEW DELHI,Multiple Accounts
FCO,FCO,03/06/2021,11210304,"27,002.50",AUGMENTAS GROUP LTD,Programme Spend (Oracle Projects Control Account)
FCO,FCO,17/06/2021,11228869,"26,990.00",KEMNERKONTORET I OSLO,Multiple Accounts
FCO,FCO,14/06/2021,11224199,"26,984.78",PRIMA HOUSE OU,Property Maintenance Overseas Residential
FCO,FCO,15/06/2021,11225802,"26,787.64",CONTROLLED BUILDING MEASURES LIMITED,Additions-Assets Under Construction (Oracle PA Control Account)
FCO,FCO,29/06/2021,11244350,"26,733.32",ACCOMMODATION PROVIDER,Multiple Accounts
FCO,FCO,03/06/2021,11210214,"26,701.38",DIPLOMATIC MISSION SUPPLIES LTD,"Purchase of Furniture, Fittings and Domestic Appliances"
FCO,FCO,07/06/2021,11215808,"26,509.06",CHINA ENERGY ENGINEERING GROUP GUANGDONG ELECTRIC POWER DESIGN INSTITUTE CO LTD,Programme Spend (Oracle Projects Control Account)
FCO,FCO,09/06/2021,11219497,"26,500.00",FLIGHT CENTRE UK,Inward visits to the UK and UK Conferences
FCO,FCO,22/06/2021,11234738,"26,495.59",ENECO BELGIUM NV,Multiple Accounts
FCO,FCO,21/06/2021,11233062,"26,438.42",JONES LANG LASALLE LIMITED,Estates Management Services
FCO,FCO,02/06/2021,11208795,"26,353.76",SAUDI REAL ESTATE COMPANY,Multiple Accounts
FCO,FCO,24/06/2021,11238203,"26,346.29",SPRL M VANDENDRIESSCHE,Additions-Assets Under Construction (Oracle PA Control Account)
FCO,FCO,30/06/2021,11244907,"26,324.31",FCDO SERVICES,Additions-Assets Under Construction (Oracle PA Control Account)
FCO,FCO,21/06/2021,11233418,"26,324.17",INTERSERVE FM LTD,Construction Project more than 10k
FCO,FCO,15/06/2021,11225992,"26,320.83",ACCOMMODATION PROVIDER,Multiple Accounts
FCO,FCO,03/06/2021,11210742,"26,296.88",SOT 161,Local Guards
FCO,FCO,08/06/2021,11217271,"26,283.21",SCHOOL,Multiple Accounts
FCO,FCO,08/06/2021,11217292,"26,283.21",SCHOOL,Multiple Accounts
FCO,FCO,08/06/2021,11217296,"26,283.21",SCHOOL,Multiple Accounts
FCO,FCO,08/06/2021,11217302,"26,283.21",SCHOOL,Multiple Accounts
FCO,FCO,08/06/2021,11217308,"26,283.21",SCHOOL,Multiple Accounts
FCO,FCO,08/06/2021,11217487,"26,283.21",SCHOOL,Multiple Accounts
FCO,FCO,08/06/2021,11217497,"26,283.21",SCHOOL,Multiple Accounts
FCO,FCO,08/06/2021,11217502,"26,283.21",SCHOOL,Multiple Accounts
FCO,FCO,08/06/2021,11217507,"26,283.21",SCHOOL,Multiple Accounts
FCO,FCO,08/06/2021,11217510,"26,283.21",SCHOOL,Multiple Accounts
FCO,FCO,11/06/2021,11222699,"26,283.21",SCHOOL,Multiple Accounts
FCO,FCO,22/06/2021,11234365,"26,220.44",BITUACH LEUMI,Multiple Accounts
FCO,FCO,24/06/2021,11237950,"26,213.80",ACCOMMODATION PROVIDER,Rental Payments - residential
FCO,FCO,24/06/2021,11238001,"26,213.80",ACCOMMODATION PROVIDER,Rental Payments - residential
FCO,FCO,11/06/2021,11223047,"26,202.80",BAE SYSTEMS APPLIED INTELLIGENCE LIMITED,Specialist Contractors
FCO,FCO,21/06/2021,11233307,"26,146.99",INTERSERVE FM LTD,Construction Project more than 10k
FCO,FCO,01/06/2021,11131940,"25,949.31",INTERNATIONAL HOLOCAUST REMEMBRANCE ALLIANCE,Programme Spend (Oracle Projects Control Account)
FCO,FCO,17/06/2021,11228948,"25,928.18",CHINA PAYROLL AGENCY,Multiple Accounts
FCO,FCO,28/06/2021,11241801,"25,911.07",TETRA TECH MANAGEMENT SERVICES LIMITED,Additions-Assets Under Construction (Oracle PA Control Account)
FCO,FCO,16/06/2021,11227413,"25,884.01",PASHA CONSTRUCTION LLC,Rental Payments - residential
FCO,FCO,01/06/2021,11207782,"25,839.10",FCDO POSTS,Funding Overseas Posts
FCO,FCO,16/06/2021,11227931,"25,755.76",SCHOOL,Schooling for Children at Post
FCO,FCO,02/06/2021,11209367,"25,750.89",CLRA SKOPJE,Programme Spend (Oracle Projects Control Account)
FCO,FCO,28/06/2021,11241020,"25,741.21",ZINC NETWORK LIMITED,Programme Spend (Oracle Projects Control Account)
FCO,FCO,10/06/2021,11222152,"25,718.39",CARBON TRUST SINGAPORE PTE LTD,Programme Spend (Oracle Projects Control Account)
FCO,FCO,08/06/2021,11216132,"25,717.15",WHITEHALL FUNDING,Recharge Suspense Account (Oracle PA Control Account)
FCO,FCO,08/06/2021,11218207,"25,717.15",NCA LAGOS,Recharge Suspense Account (Oracle PA Control Account)
FCO,FCO,21/06/2021,11233202,"25,680.20",TETRA TECH INTERNATIONAL DEVELOPMENT,Programme Spend (Oracle Projects Control Account)
FCO,FCO,09/06/2021,11218791,"25,654.38",TETRA TECH MANAGEMENT SERVICES LIMITED,Construction Project more than 10k
FCO,FCO,17/06/2021,11228669,"25,560.64",EMPLOYEES PROVIDENT FUND BOARD,Overseas Tax And Social Security
FCO,FCO,02/06/2021,11208959,"25,368.19",ZARKA ZEBA LOGISTIC SERVICES,Misc Security Payments
FCO,FCO,18/06/2021,11230893,"25,222.05",MINIMAL RISK CONSULTANCY LTD,Additions-Assets Under Construction (Oracle PA Control Account)
FCO,FCO,10/06/2021,11221541,"25,198.15",BENNETT CONSTRUCTION COMPANY LTD,Programme Spend (Oracle Projects Control Account)
FCO,FCO,16/06/2021,11227887,"25,043.88",ACCOMMODATION PROVIDER,Rental Payments - residential
FCO,FCO,16/06/2021,11227905,"25,043.88",ACCOMMODATION PROVIDER,Rental Payments - residential
FCO,FCO,16/06/2021,11227906,"25,043.88",ACCOMMODATION PROVIDER,Rental Payments - residential
FCO,FCO,16/06/2021,11227907,"25,043.88",ACCOMMODATION PROVIDER,Rental Payments - residential
FCO,FCO,08/06/2021,11217261,"25,019.34",SCHOOL,Multiple Accounts
FCO,FCO,08/06/2021,11217269,"25,019.34",SCHOOL,Multiple Accounts
FCO,FCO,08/06/2021,11217481,"25,019.34",SCHOOL,Multiple Accounts
FCO,FCO,08/06/2021,11217484,"25,019.34",SCHOOL,Multiple Accounts
FCO,FCO,15/06/2021,11226477,"-25,270.40",UNITED NATIONS,Programme Spend (Oracle Projects Control Account)
FCO,FCO,15/06/2021,11225717,"-28,145.87",FCDO SERVICES,Security: Works Non-Residential
FCO,FCO,29/06/2021,11242991,"-29,303.12",JOA OTHER DEBTORS,Schooling for Children at Post
FCO,FCO,30/06/2021,11244797,"-30,676.50",GOVERNMENT LEGAL DEPARTMENT,Legal Consultancy
FCO,FCO,01/06/2021,11165345,"-31,768.09",ACCOMMODATION PROVIDER,Rental Payments - residential
FCO,FCO,16/06/2021,11228040,"-35,237.78",GYG OTHER DEBTORS,Proceeds from the Sale of Capitalised Vehicles
FCO,FCO,16/06/2021,11227963,"-39,563.00",FOUNDATION HIRONDELLE,Programme Spend (Oracle Projects Control Account)
FCO,FCO,03/06/2021,11210264,"-40,724.74",BAE SYSTEMS APPLIED INTELLIGENCE LIMITED,IT Management and Change
FCO,FCO,08/06/2021,11216624,"-46,029.50",HOME OFFICE,Programme Spend (Oracle Projects Control Account)
FCO,FCO,24/06/2021,11138611,"-46,029.50",HOME OFFICE,Programme Spend (Oracle Projects Control Account)
FCO,FCO,29/06/2021,11243097,"-46,029.50",HOME OFFICE,Programme Spend (Oracle Projects Control Account)
FCO,FCO,21/06/2021,11233508,"-49,061.63",INTERSERVE FM LTD,Contract Fees
FCO,FCO,18/06/2021,11230987,"-50,100.77",GOVERNMENT OF ANGUILLA,Programme Spend (Oracle Projects Control Account)
FCO,FCO,28/06/2021,11241788,"-50,100.77",UTV OTHER DEBTORS,Programme Spend (Oracle Projects Control Account)
FCO,FCO,01/06/2021,11199300,"-57,987.70",UNDP CONTRIBUTIONS,Programme Spend (Oracle Projects Control Account)
FCO,FCO,09/06/2021,11219201,"-64,056.10",Alexander Mann Solutions Limited,Organisation and Change Management Consultancy
FCO,FCO,21/06/2021,11233478,"-80,065.77",INTERSERVE FM LTD,Multiple Accounts
FCO,FCO,16/06/2021,11227451,"-85,454.92",HOME OFFICE,Programme Spend (Oracle Projects Control Account)
FCO,FCO,15/06/2021,11225744,"-89,712.60",SOFTWAREONE UK LTD,End User Software and Hardware
FCO,FCO,15/06/2021,11226481,"-115,120.70",UNITED NATIONS,Programme Spend (Oracle Projects Control Account)
FCO,FCO,01/06/2021,11195472,"-116,998.22",UNDP CONTRIBUTIONS,Programme Spend (Oracle Projects Control Account)
FCO,FCO,30/06/2021,11244647,"-165,306.54",IRT OTHER DEBTORS,Rent and Service Charges
FCO,FCO,24/06/2021,11237741,"-226,054.94",CABINET OFFICE,UK - Air Travel
